{"text_format":"1","workbook":"xlsx","n_sheets":13,"sheets":["使い方","入力シート","消防計画（本文）","別表１","別表２－１","別表２－２","別表３","別表４","別表５","別表６","別紙１","別紙２","別添え"],"not_rendered":{"charts":0,"images":1,"macros":1,"external_links":0,"defined_names":6,"comments":1,"pivot_tables":0},"unopened":[],"bounds":{"document_bytes":16777216,"sheet_cells":100000,"rows_first":2000,"rows_last":500,"rows_between":2000,"halvings":0,"cell_chars":16384,"cell_head_chars":4096},"cells_cut":0,"cells_raw":0,"read":"whole","date_system":"1900"}

{"sheet":"使い方","index":0,"n_rows":20,"n_cols":18,"rows_kept":20,"cut":false,"hidden":false,"merged":[]}
["消防計画作成簡易ツール（小規模用）について"]
[]
["【本ツールの概要】"]
["①本ツールは、当庁が提供している「消防計画作成例」を基に、消防計画をより簡単に作成することができるツールです。"]
["②「入力シート」の質問に答えていくと、消防計画をある程度の出来で作成することができます。"]
["③②で作成した消防計画に目を通し、必要箇所を加筆・修正して最終的に完成させます。"]
[]
["【使い方】"]
["①「入力シート」の黄色いセルの質問に答えると、その内容が「消防計画（本文）」のシートの黄色の箇所に反映されます。",null,null,null,null,null,null,null,null,null,null,null,null,"←このセル"]
["②「入力シート」の緑のセルの質問は、「はい」「いいえ」で回答します。「いいえ」で答えると「消防計画（本文）」のシートの非該当箇所に取消線が引かれます。",null,null,null,null,null,null,null,null,null,null,null,null,null,null,null,null,"←このセル"]
["③「入力シート」で「直接記入してください」とある箇所は、「消防計画（本文）」のシートのピンクのセルに対応しています。必要に応じて記入してください。",null,null,null,null,null,null,null,null,null,null,null,null,null,null,null,null,"←このセル"]
["④すべての回答（入力）が終わったら、「消防計画（本文）」シートを開き、必要な事項を加筆・修正（直接入力）し、消防計画本文を完成させます。"]
["⑤別表、別紙にそれぞれ必要事項を記入し、消防計画を完成させてください。"]
[]
["【届出の際の留意事項】"]
["①「消防計画（本文）」のほか、「別表１」～「別表６」、「別紙１」「別紙２」も消防計画の一部ですので、忘れずに！（シートが分かれています）"]
["②別表、別紙は、それぞれ直接入力してください（一部を除き、「入力シート」はありません）"]
["③電子申請で消防署に届け出る場合は、エクセルファイルのまま申請書に添付して構いません。"]
[]
["建物や事業所の実態に合った、実効性のある消防計画を作成しましょう！"]

{"sheet":"入力シート","index":1,"n_rows":127,"n_cols":4,"rows_kept":127,"cut":false,"hidden":false,"merged":[[124,0,124,1],[0,0,0,2],[94,0,94,3],[6,0,6,2],[10,0,10,2],[13,0,13,2],[16,0,16,2],[24,0,24,2],[32,0,32,2],[35,0,35,2],[38,0,38,2],[51,0,51,2],[41,0,41,2],[44,0,44,2],[48,0,48,2],[74,0,74,2],[120,0,120,1],[121,0,121,1],[122,0,122,1],[2,0,2,2],[80,0,80,2],[98,0,98,2],[95,0,95,2],[109,0,109,2],[104,0,104,2],[101,0,101,2],[114,0,114,2]]}
["消防計画作成支援ツール（小規模用）　入力シート"]
["消防計画作成に当たっての質問","質問への回答","備考"]
["基本事項"]
["管理権原者は誰ですか？",null,"防火管理の最終責任者のこと。役職のみでの入力も可"]
["防火管理者は誰ですか？",null,"役職のみでの入力も可"]
[]
["標題"]
["建物名は何ですか？",null,"【記入例】●●●●ビル"]
["この計画を作成（又は変更）した年月日はいつですか？","令和●年●月●日","【記入例】令和●年●月●日"]
[]
["１　目的と適用範囲"]
["この消防計画が適用される範囲（事業所名など）は何ですか？",null,"【記入例】自事業所名、建物共用部"]
[]
["２　防火管理業務の一部委託"]
["防火管理業務の一部委託を実施していますか？",null,"【記入方法】「はい」か「いいえ」を入力（かぎかっこは不要）※「はい」の場合「別表１」への直接入力が必要です"]
[]
["３　管理権原者の責任及び防火管理者の業務"]
["統括防火管理者の選任が必要な建物ですか？",null,"【記入方法】「はい」か「いいえ」を入力（かぎかっこは不要）"]
["自衛消防組織の設置が必要な建物ですか？",null,"【記入方法】「はい」か「いいえ」を入力（かぎかっこは不要）"]
["防火対象物点検報告が必要な建物ですか？",null,"【記入方法】「はい」か「いいえ」を入力（かぎかっこは不要）"]
["防災管理者の選任が必要な建物ですか？",null,"【記入方法】「はい」か「いいえ」を入力（かぎかっこは不要）"]
["防火管理技能者が必要な建物ですか？",null,"【記入方法】「はい」か「いいえ」を入力（かぎかっこは不要）※テナントの場合は「いいえ」を記入"]
["防災センターが設置されている建物ですか？",null,"【記入方法】「はい」か「いいえ」を入力（かぎかっこは不要）※テナントの場合は「いいえ」を記入"]
[]
["４　火災予防上の自主検査"]
["自主検査（日常）の実施時期はいつですか？",null,"【記入例】毎日終業時、９：００及び１７：００　など"]
["自主検査（日常）の実施者は誰ですか？",null,"役職で指定してもよい"]
["自主検査（定期）の実施時期はいつですか？",null,"【記入例】４月と１０月、毎月１日　など"]
["自主検査（定期）の実施者は誰ですか？",null,"役職で指定してもよい"]
["その他必要な業務（日常）を、「消防計画（本文）」の該当欄に直接入力してください",null,"「消防計画（本文）」のピンクのセルに直接入力します。\n該当がない場合は、空欄で構いません。"]
["その他必要な業務（定期）を、「消防計画（本文）」の該当欄に直接入力してください",null,"「消防計画（本文）」のピンクのセルに直接入力します。\n該当がない場合は、空欄で構いません。"]
[]
["５　法定点検等及び報告"]
["その他必要な業務を、「消防計画（本文）」の該当欄に直接入力してください",null,"「消防計画（本文）」のピンクのセルに直接入力します。\n該当がない場合は、空欄で構いません。"]
[]
["６　従業員が守るべき事項"]
["その他必要な業務を、「消防計画（本文）」の該当欄に直接入力してください",null,"「消防計画（本文）」のピンクのセルに直接入力します。\n該当がない場合は、空欄で構いません。"]
[]
["７　放火防止対策"]
["その他必要な業務を、「消防計画（本文）」の該当欄に直接入力してください",null,"「消防計画（本文）」のピンクのセルに直接入力します。\n該当がない場合は、空欄で構いません。"]
[]
["８　工事等における安全対策"]
["その他必要な業務を、「消防計画（本文）」の該当欄に直接入力してください",null,"「消防計画（本文）」のピンクのセルに直接入力します。\n該当がない場合は、空欄で構いません。"]
[]
["９　防火・防災教育"]
["防火防災教育の実施時期は、いつですか？",null,"【記入例】4月、１０月"]
["その他必要な業務を、「消防計画（本文）」の該当欄に直接入力してください",null,"「消防計画（本文）」のピンクのセルに直接入力します。\n該当がない場合は、空欄で構いません。"]
[]
["10　消防機関への連絡・報告"]
["作成例の内容が事業所の実態に合っているか確認します。",null,"「消防計画（本文）」のピンクのセルに直接入力します。\n該当がない場合は、空欄で構いません。"]
[]
["11　自衛消防隊の編成及び任務"]
["自衛消防隊長は誰ですか？",null,"役職による指定でもよい"]
["自衛消防隊長不在時の第１代行者は誰ですか？",null,"役職による指定でもよい"]
["自衛消防隊長不在時の第２代行者は誰ですか？",null,"役職による指定でもよい"]
["通報連絡班（情報）班は誰ですか？（１人目）",null,"役職による指定でもよい"]
["通報連絡班（情報）班は誰ですか？（２人目）",null,"いない場合は空欄で可"]
["通報連絡班（情報）班は誰ですか？（３人目）",null,"いない場合は空欄で可"]
["通報連絡班の任務の追加があれば、「消防計画（本文）」の該当欄に直接入力してください",null,"災害等発生時の任務。ない場合は空欄で可"]
["通報連絡班の任務の追加があれば、「消防計画（本文）」の該当欄に直接入力してください",null,"災害等発生時の任務。ない場合は空欄で可"]
["初期消火班は誰ですか？（１人目）",null,"役職による指定でもよい"]
["初期消火班は誰ですか？（２人目）",null,"いない場合は空欄で可"]
["初期消火班は誰ですか？（３人目）",null,"いない場合は空欄で可"]
["初期消火班の任務の追加があれば、「消防計画（本文）」の該当欄に直接入力してください",null,"災害等発生時の任務。ない場合は空欄で可。\n「消防計画（本文）」のピンクのセルに直接入力します。"]
["初期消火班の任務の追加があれば、「消防計画（本文）」の該当欄に直接入力してください",null,"警戒宣言発令時の任務。ない場合は空欄で可。\n「消防計画（本文）」のピンクのセルに直接入力します。"]
["避難誘導班は誰ですか？（１人目）",null,"役職による指定でもよい"]
["避難誘導班は誰ですか？（２人目）",null,"いない場合は空欄で可"]
["避難誘導班は誰ですか？（３人目）",null,"いない場合は空欄で可"]
["避難誘導班の任務の追加があれば、「消防計画（本文）」の該当欄に直接入力してください",null,"災害等発生時の任務。ない場合は空欄で可。\n「消防計画（本文）」のピンクのセルに直接入力します。"]
["避難誘導班の任務の追加があれば、「消防計画（本文）」の該当欄に直接入力してください",null,"警戒宣言発令時の任務。ない場合は空欄で可。\n「消防計画（本文）」のピンクのセルに直接入力します。"]
["追加の班があれば、班名を「消防計画（本文）」の該当欄に直接入力してください",null,"【記入例】応急救護班、安全防護班　など。\n「消防計画（本文）」のピンクのセルに直接入力します。"]
["追加した班の班員を「消防計画（本文）」の該当欄に直接入力してください",null,"「消防計画（本文）」のピンクのセルに直接入力します。\n該当がない場合は、空欄で構いません。"]
["追加した班の任務を「消防計画（本文）」の該当欄に直接入力してください",null,"「消防計画（本文）」のピンクのセルに直接入力します。\n該当がない場合は、空欄で構いません。"]
[]
["12　訓練"]
["総合訓練は、いつ行いますか？",null,"【記入例】３月"]
["部分訓練（消火・通報・避難誘導等）は、いつ行いますか？",null,"【記入例】１０月"]
["「その他の部分訓練」を記入してください",null,"【記入例】地震火災を想定した訓練　\n※該当するものがなければ空欄でよい"]
["その他の部分訓練は、いつ行いますか？",null,"【記入例】総合訓練にあわせて行う"]
[]
["13　震災対策"]
["従業員の安否確認は、誰が行いますか？",null,"【記入例】防火管理者"]
["安否確認手段は何ですか？（第１優先順位）",null,"【記入例】携帯電話用災害用伝言板"]
["安否確認手段は何ですか？（第２優先順位）",null,"【記入例】ＳＮＳ"]
["安否確認手段は何ですか？（第３優先順位）",null,"【記入例】災害用伝言ダイヤル（１７１）"]
["施設内待機場所は、どこですか？",null,"震災時に従業員等が安全に待機できる場所（施設内待機場所）を記入する。\n【記入例】１階エントランス"]
["敷地内に危険物施設、毒物、高圧ガスなどを貯蔵・取扱う施設がありますか？",null,"【記入方法】「はい」か「いいえ」を入力（かぎかっこは不要）※１つでもあれば「はい」"]
["施設内待機は、何で呼び掛けますか？",null,"【記入例】拡声器"]
["地震の際の避難場所は、どこですか？",null,"【記入例】●●公園（津波：▲▲公園）\n※市区町村によってはホームページ等で公開しています。"]
["上記避難場所へは、どのように避難しますか？",null,"【記入例】１階ロビーに集合→点呼→●●通りにより徒歩で避難"]
["津波対策が必要な地域ですか？",null,"【記入方法】「はい」か「いいえ」を入力（かぎかっこは不要）※不明な場合は「はい」"]
["津波のおそれがある場合は、どのように対応しますか？",null,"【記入例】\n・注意報発表で避難開始（地階への呼び掛け）\n・止水板、土嚢等で浸水を防止"]
["液状化対策が必要な地域ですか？",null,"【記入方法】「はい」か「いいえ」を入力（かぎかっこは不要）※不明な場合は「はい」"]
["液状化が発生した場合に備えて、どのような対策をしますか？",null,"【記入例】\n・ライフラインの長期停止に備え、非常用物品を余分に準備する\n・泥砂の浸水防止（津波対策に準じる）"]
[]
["14　大規模テロ等に伴う災害対策"]
["作成例の内容が事業所の実態に合っているか確認します。"]
[]
["15　大雨・強風対策"]
["作成例の内容が事業所の実態に合っているか確認します。"]
[]
["16　受傷事故等に係る自衛消防対策"]
["作成例の内容が事業所の実態に合っているか確認します。"]
[]
["17　その他防火管理上必要な事項"]
["緊急時は誰に連絡しますか？"]
["緊急時の連絡先（電話番号）は何ですか？"]
["消防計画概要を、どこに貼り出しますか？",null,"【記入例】事務室内"]
[]
["別表４"]
["備蓄品の保管場所はどこですか？（階）",null,"【記入例】３階"]
["備蓄品の保管場所はどこですか？（保管場所）",null,"【記入例】物置き部屋"]
["何人分の備蓄品を用意しますか？",null,"数字だけ記入。従業員数が目安\n【記入例】20"]
[]
["最後に"]
["質問は以上で終了です。"]
["この入力シートに入力した内容が、「消防計画（本文）」などのシートに反映されています。"]
["この入力シートは、消防計画を作成するための補助ツールです。"]
["あなたの事業所の実態に合わせて、「消防計画（本文）」のシートを適宜修正して構いません。"]
["最後にもう一度見直して、消防計画を最終的に完成させてください。"]
["完成したら、消防署への届出が必要です。届出用紙にこの消防計画を添付して届け出てください。"]
["届出用紙は東京消防庁のホームページからダウンロードできます。"]
["電子申請で届け出る場合、消防計画の添付はエクセルファイルのままで構いません。"]
["右の[ＰＤＦで出力]ボタンを押すと各シートを１つにまとめてＰＤＦへ変換できます。"]
["作成した消防計画に従って、防火管理業務を適切に行いましょう！"]
[null,null,null,"はい"]
[null,null,null,"いいえ"]

{"sheet":"消防計画（本文）","index":2,"n_rows":376,"n_cols":10,"rows_kept":376,"cut":false,"hidden":false,"merged":[[0,0,0,10],[2,7,2,8],[229,4,229,5],[230,4,230,5],[231,4,231,5],[232,4,232,5],[295,3,296,9],[311,3,311,9],[312,3,312,9],[230,6,230,9],[231,6,231,9],[232,6,232,9],[219,3,219,9],[220,3,220,9],[221,3,221,9],[201,3,201,9],[202,3,202,9],[203,3,203,9],[245,3,245,9],[243,3,243,5],[243,6,243,9],[204,3,204,9],[205,3,205,9],[206,3,206,9],[373,1,373,10],[375,1,375,10],[323,3,323,9],[326,3,326,9],[327,3,327,9],[328,3,328,9],[329,3,329,9],[330,3,330,9],[331,3,331,9],[332,3,332,9],[333,3,333,9],[334,3,334,9],[335,3,335,9],[340,3,340,9],[341,3,341,9],[342,3,342,9],[343,3,343,9],[344,3,344,9],[345,3,345,9],[346,3,346,9],[347,3,347,9],[348,3,348,9],[339,3,339,9],[370,1,370,10],[265,3,265,9],[349,3,349,9],[305,1,307,2],[299,3,299,9],[308,1,310,2],[302,1,302,2],[302,3,302,9],[300,3,300,5],[300,6,300,9],[301,3,301,5],[301,6,301,9],[300,1,301,2],[304,1,304,2],[304,3,304,9],[305,3,307,9],[340,1,344,2],[345,1,347,2],[311,1,312,2],[313,1,314,2],[316,3,316,9],[317,3,317,9],[313,3,313,9],[314,3,314,9],[324,3,325,9],[257,1,260,2],[261,1,264,2],[252,1,253,2],[252,3,252,9],[253,3,253,9],[257,3,257,9],[289,3,289,5],[290,3,290,5],[289,6,289,9],[290,6,290,9],[284,1,290,2],[286,3,286,9],[287,3,287,9],[288,3,288,9],[258,3,258,9],[259,3,259,9],[260,3,260,9],[261,3,261,9],[262,3,262,9],[272,3,272,9],[273,3,273,9],[265,1,268,2],[269,1,270,2],[271,1,272,2],[222,1,222,2],[222,3,222,9],[218,1,219,2],[213,3,213,9],[216,3,216,9],[217,3,217,9],[218,3,218,9],[214,1,215,2],[214,3,215,9],[216,1,217,2],[220,1,221,2],[208,1,213,2],[208,3,208,9],[209,3,209,9],[210,3,210,9],[211,3,211,9],[212,3,212,9],[204,1,207,2],[186,1,187,2],[188,1,191,2],[185,3,185,6],[185,7,185,9],[185,1,185,2],[186,3,186,6],[187,3,187,6],[200,1,203,2],[192,1,192,10],[193,1,193,10],[194,1,194,10],[195,1,195,10],[197,1,197,10],[199,1,199,2],[199,3,199,9],[188,3,188,6],[200,3,200,9],[189,3,189,6],[191,3,191,6],[190,3,190,6],[207,3,207,9],[140,1,140,9],[141,1,141,9],[143,1,143,10],[139,1,139,3],[138,8,139,9],[156,1,156,3],[156,8,156,10],[157,1,157,3],[158,1,158,3],[144,1,144,9],[145,1,145,9],[146,1,146,9],[147,1,147,9],[154,8,154,10],[154,5,154,7],[154,1,154,3],[155,1,155,3],[149,2,149,3],[150,2,150,3],[149,5,149,7],[152,7,152,9],[151,7,151,9],[151,2,151,3],[130,1,130,3],[129,8,130,9],[127,1,127,3],[127,8,128,9],[128,1,128,3],[129,1,129,3],[136,8,137,9],[136,1,137,3],[138,1,138,3],[131,8,135,9],[131,1,135,3],[138,4,139,7],[127,4,128,7],[129,4,130,7],[131,4,135,7],[136,4,137,7],[126,1,126,3],[117,1,119,3],[117,8,119,9],[120,8,121,9],[122,8,124,9],[125,8,126,9],[122,1,124,3],[120,1,121,3],[125,1,125,3],[117,4,117,7],[118,4,119,7],[120,4,121,7],[122,4,124,7],[125,4,126,7],[115,1,115,3],[115,8,115,9],[116,8,116,9],[116,1,116,3],[107,1,107,10],[108,1,108,10],[109,1,109,10],[110,1,110,10],[111,1,111,10],[115,4,115,7],[116,4,116,7],[103,1,103,10],[105,1,105,10],[106,1,106,10],[96,1,96,10],[97,1,97,10],[98,1,98,10],[99,1,99,10],[100,1,100,10],[113,1,113,10],[94,1,94,10],[95,1,95,10],[86,1,86,10],[87,1,87,10],[88,1,88,10],[89,1,89,10],[90,1,90,10],[101,1,101,10],[102,1,102,10],[84,1,84,10],[75,1,75,10],[76,1,76,10],[77,1,77,10],[78,1,78,10],[79,1,79,10],[91,1,91,10],[92,1,92,10],[93,1,93,10],[74,1,74,10],[64,1,64,10],[65,1,65,10],[66,1,66,10],[68,1,68,10],[80,1,80,10],[81,1,81,10],[82,1,82,10],[83,1,83,10],[72,1,72,10],[71,1,71,10],[28,3,28,10],[33,3,33,10],[34,3,34,10],[35,3,35,10],[26,1,34,2],[36,3,36,10],[37,3,37,10],[38,3,38,10],[59,1,59,10],[58,1,58,2],[57,3,57,5],[57,6,57,7],[57,8,57,9],[58,8,58,9],[58,6,58,7],[58,3,58,5],[43,3,43,10],[44,3,44,10],[39,3,39,10],[40,3,40,10],[41,3,41,10],[54,1,54,10],[55,1,55,10],[57,1,57,2],[23,1,23,10],[25,1,25,2],[25,3,25,10],[26,3,26,10],[27,3,27,10],[4,1,4,10],[6,1,6,10],[16,1,16,10],[17,1,17,10],[19,1,19,10],[20,1,20,10],[14,1,14,10],[15,1,15,10],[12,0,12,10],[13,1,13,10],[8,1,8,10],[9,1,9,10],[11,1,11,10],[3,1,3,10],[51,3,51,10],[52,3,52,10],[46,1,47,2],[48,1,52,2],[48,3,48,10],[49,3,49,10],[50,3,50,10],[46,3,46,10],[47,3,47,10],[41,1,45,2],[42,3,42,10],[30,3,30,10],[31,3,31,10],[32,3,32,10],[38,1,40,2],[35,1,37,2],[45,5,45,6],[45,7,45,10],[45,3,45,4],[24,1,24,10],[29,3,29,10],[21,1,21,10],[22,1,22,10],[170,1,170,3],[168,4,168,7],[169,4,172,7],[155,8,155,10],[162,1,162,3],[162,8,162,10],[163,1,163,3],[163,8,163,10],[164,1,164,3],[164,8,164,10],[159,1,159,3],[160,1,160,3],[161,1,161,3],[161,8,161,10],[165,8,167,10],[165,1,165,3],[166,1,166,3],[167,1,167,3],[155,4,155,7],[156,4,162,7],[163,4,163,7],[164,4,167,7],[157,8,160,10],[170,8,173,10],[178,1,178,3],[174,1,174,3],[174,8,174,10],[174,4,174,7],[175,4,175,7],[176,4,176,7],[177,4,177,7],[178,4,178,7],[175,8,175,10],[176,8,176,10],[256,3,256,9],[225,1,226,2],[249,1,251,2],[237,1,238,2],[246,3,246,9],[247,3,247,9],[248,3,248,9],[249,3,249,9],[250,3,250,9],[251,3,251,9],[233,3,233,9],[234,3,234,9],[235,3,235,9],[233,1,235,2],[236,1,236,9],[242,1,243,2],[244,1,248,2],[237,3,237,9],[238,3,238,9],[239,3,239,9],[240,3,240,9],[241,3,241,9],[239,1,241,2],[242,3,242,9],[275,1,277,2],[278,1,279,2],[280,3,280,7],[280,8,280,9],[280,1,281,2],[273,1,274,2],[277,3,277,9],[278,3,278,9],[279,3,279,9],[281,3,281,9],[274,3,274,9],[275,3,275,9],[276,3,276,9],[244,3,244,9],[256,1,256,2],[372,1,372,7],[372,8,372,10],[67,12,67,21],[68,12,68,21],[67,1,67,2],[67,3,67,4],[67,5,67,6],[67,7,67,10],[369,1,369,2],[369,3,369,10],[364,1,368,2],[359,1,360,2],[361,1,363,2],[318,3,318,9],[319,3,319,9],[315,1,319,2],[356,1,356,10],[358,1,358,2],[315,3,315,9],[350,3,350,9],[358,3,358,9],[360,3,360,9],[362,3,362,9],[363,3,363,9],[266,3,266,9],[267,3,267,9],[268,3,268,9],[269,3,269,9],[270,3,270,9],[271,3,271,9],[371,1,371,2],[371,8,371,10],[367,3,367,9],[368,3,368,9],[364,3,364,9],[365,3,365,9],[366,3,366,9],[337,1,337,10],[348,1,354,2],[352,3,352,9],[353,3,353,9],[354,3,354,9],[339,1,339,2],[351,3,351,9],[321,1,321,10],[326,1,328,2],[183,1,183,10],[182,1,182,3],[229,6,229,9],[60,1,60,10],[62,1,62,10],[63,1,63,10],[69,1,69,10],[70,1,70,10],[173,4,173,7],[227,1,232,2],[171,1,171,3],[172,1,172,3],[173,1,173,3],[168,1,168,3],[168,8,168,10],[169,1,169,3],[169,8,169,10],[223,1,224,2],[179,1,179,3],[180,1,180,3],[181,1,181,3],[175,1,175,3],[176,1,176,3],[177,1,177,3],[56,1,56,2],[329,1,335,2],[323,1,323,2],[324,1,325,2],[308,3,310,9],[282,1,283,2],[283,3,283,9],[282,3,282,9],[284,3,284,9],[285,3,285,9],[291,3,291,9],[292,3,292,9],[298,3,298,9],[291,1,292,2],[293,1,294,2],[295,1,296,2],[297,1,299,2],[293,3,293,9],[294,3,294,9],[297,3,297,9],[226,3,226,9],[227,3,227,9],[228,3,228,9],[225,3,225,9],[376,0,376,10],[371,4,371,6],[263,3,263,9],[264,3,264,9],[223,3,224,9],[5,1,5,5],[5,6,5,10],[190,7,191,9],[230,3,232,3],[186,7,187,9],[188,7,189,9],[177,8,177,10],[178,8,178,10],[179,4,179,7],[179,8,179,10],[180,4,180,7],[180,8,180,10],[181,4,181,7],[181,8,181,10],[182,4,182,7],[182,8,182,10],[56,3,56,5],[56,6,56,7],[56,8,56,9]]}
[{"$f":"入力シート!B8&\"　消防計画\"","v":"　消防計画"}]
[]
[null,null,null,null,null,null,null,{"$f":"入力シート!B9","v":"令和●年●月●日"},null,"作成"]
["１　目的と適用範囲","目的と適用範囲"]
[null,"　この計画は、火災と予防するとともに、火災、地震その他の災害等による人命の安全及び被害の軽減"]
[null,"を図ることを目的とし、管理権原の及ぶ",null,null,null,null,{"$f":"入力シート!B12","v":0}]
[null,"部分に勤務等する者は、この計画を遵守する。"]
[]
["▲２　","　防火管理業務の一部委託（　有　・　無　）"]
[null,"　防火管理に関する業務の一部を別表１のとおり委託する。"]
[]
[3,"管理権原者の責任及び防火管理者の業務"]
["　管理権原者の責任"]
["ア","　管理権原が及ぶ範囲の防火管理業務について、全ての責任を持つ。"]
["イ","　防火・防災上の建物構造の不備や消防用設備等・特殊消防用設備等（以下、「消防用設備"]
[null,"等」という。）の不備欠陥が発見された場合、速やかに改修する。"]
["ウ","　管理権原者は、全体についての消防計画を遵守する。★"]
["エ","　統括防火管理者が作成する全体についての消防計画とこの消防計画は適合する内容にする。"]
["↓自衛消防組織の設置が必要な場合"]
["オ","　管理権原者は、他の管理権原者と共同して自衛消防組織の設置及び運営について責任を負う。▲"]
["カ","　管理権原者は、共同して統括管理者を選任し、自衛消防組織を統括させる。▲"]
["キ","　管理権原者は、定期に開催される自衛消防組織に関する協議会に参加し、協議会を通して、建物"]
[null,"全体の安全性を高めるよう努める。▲"]
["","　防火管理者の業務"]
[null,"防火管理者は次の業務を行う。"]
[null,"業務",null,"内容"]
[null,"点検・監督業務",null,"①　火災予防上の自主検査・点検の実施及び改修"]
[null,null,null,"　　建物構造、防火上の構造等、避難施設、消防用設備等、電気設備、その他"]
[null,null,null,"　防災設備、危険物施設、火気設備・火気器具（以下「火気設備・器具」とい"]
[null,null,null,"　う。）の検査・点検と、不備欠陥箇所のある場合の改修"]
[null,null,null,"②　地震による被害の軽減のための自主点検・検査の実施又は改修"]
[null,null,null,"③　避難施設、防災設備等の検査・点検の実施と、不備欠陥箇所のある場合の"]
[null,null,null,"　改修"]
[null,null,null,"④　防火担当責任者及び火元責任者に対する指導及び監督"]
[null,null,null,"⑤　火気の使用、取扱いの指導、監督"]
[null,"教育・訓練業務",null,"①　従業員に対する防火・防災の教育の実施"]
[null,null,null,"②　消火、通報、避難誘導などの訓練の実施及び結果の検討"]
[null,null,null,"③　放火防止対策の推進"]
[null,"管理業務",null,"①　収容人員の管理"]
[null,null,null,"②　消防機関への届出及び連絡等"]
[null,null,null,"③　家具、じゅう器等の転倒・落下・移動防止措置"]
[null,"点検立会業務",null,"①　消防用設備等の法定点検・整備の立会い又は立会いの指示"]
[null,null,null,"②　建物等の定期検査の立会い又は立会いの指示"]
[null,null,null,"③　改装工事などの立会い又は立会いの指示と安全対策の樹立"]
[null,null,null,"↓防火対象物点検（※防災管理点検）が必要な場合"]
[null,null,null,"④　防火対象物",null,"（防災管理）",null,"の法定点検の立会い又は立会いの指示"]
[null,"管理権原者への提案・報告業務",null,"①　防火管理業務を遂行する上での提案"]
[null,null,null,"②　点検・検査の結果についての報告"]
[null,"その他防火管理上必要な業務",null,"①　防火管理上必要な事項の、統括防火管理者への報告★"]
[null,null,null,"↓防火管理技能者が必要な場合"]
[null,null,null,"②　防火管理技能者に対する指示▲"]
[null,null,null,"↓防災センターがある場合"]
[null,null,null,"③　防災センターへの災害活動上必要な情報の集約▲"]
[]
[4,"　火災予防上の自主検査"]
[null,"火災予防上の自主検査、別表２－１、別表２－２に基づき実施する。"]
[null,null,null,"検査実施日",null,null,"検査実施者",null,"その他必要事項"]
[null,"別表２－１（日常）",null,{"$f":"入力シート!B26","v":0},null,null,{"$f":"入力シート!B27","v":0}]
[null,"別表２－２（定期）",null,{"$f":"入力シート!B28","v":0},null,null,{"$f":"入力シート!B29","v":0}]
[null,"　不備欠陥事項の改修は、全体についての消防計画に基づく権原の範囲により責任を有する管理権原者"]
[null,"が行う。★"]
[]
[5,"　法定点検等及び報告"]
["","　防火管理者は法定点検実施時に立ち会い、又は立会者を指定し、不備欠陥箇所を確認する。"]
["","　消防用設備等の点検・報告について、建物所有者が実施しているか確認し、必要があれば、事業"]
[null,"所（テナント）の責任で、法令に規定する期限内に報告できるよう計画的に点検する。"]
[null,"↓防火対象物点検報告（※防災管理点検報告）が必要な場合"]
["","　管理権原者は、",null,"防火対象物",null,"（防災管理）",null,"の法定点検について、法令に規定する期限内に"]
[null,"報告できるよう計画的に点検する。※▲"]
["","　防火管理者は、法定点検結果を適宜確認し、その記録を管理するとともに、点検の結果、不備が"]
[null,"あった場合は管理権原者に報告し、計画的な改修を図る。"]
["","　その他"]
[]
[]
[6,"　従業員が守るべき事項"]
["","　避難口、階段、避難通路等には避難障害となる設備を設けたり、物品を置かない。"]
["","　防火戸の付近には、常に閉鎖の障害となる物品を置かない。"]
["","　喫煙は、指定された場所で行う。"]
["","　厨房機器やその周囲は毎日こまめに点検・清掃する。"]
["","　防火ダンパーや自動消火装置は正常に作動するように整備・清掃する。"]
["","　ガス機器を使用中はその場を離れない。離れるときは火を消してから離れる。"]
["","　その他"]
[]
[]
[]
[]
[7,"　放火防止対策"]
["","　建物の外周部及び敷地内にはダンボール等の可燃物を放置しない。"]
["","　倉庫、書庫等は施錠する。"]
["","　終業時には、必ず施錠する。"]
["","　その他"]
[]
[]
[]
[8,"　工事等における安全対策"]
["","　消防用設備等の機能に支障を及ぼす工事等では、「工事中の消防計画」を作成し、届出する。"]
["","　模様替え等の工事を行う場合、工事人に工事計画書を提出させ、必要な指示を行う。"]
["","　防火管理者は工事に立ち会い、又は立会者を指定し、定期的に工事状況を確認する。"]
["","　工事人に、指定場所以外での喫煙及び裸火の取扱いをさせない。"]
["","　工事人に、火気管理の責任者を作業場所ごとに指定させて提示させる。"]
["","　その他"]
[]
[]
[]
[]
[9,"　防火・防災教育"]
["","　別紙１及び別紙２の「防火・防災の手引き」を活用し、従業員・新入社員等に必要の都度、教育"]
[null,"を行う。"]
["","　管理権原者は、防火管理業務を行う上で必要となる各種法定資格について不備が生じないように、"]
[null,"資格を有する者の育成を計画的に推進する。"]
["","　その他"]
[]
[]
[10,"　消防機関への連絡・報告"]
[]
[null,"種別",null,null,"届出等の時期",null,null,null,"届出者等"]
[null,"防火防災管理者選任（解任）届出",null,null,"防火管理者を変更したとき",null,null,null,"管理権原者"]
[null,"消防計画作成（変更）届出",null,null,"消防計画を変更したとき",null,null,null,"防火管理者"]
[null,null,null,null,"管理権原者又は防火管理者を変更したとき"]
[]
[null,"自衛消防訓練実施の通報",null,null,"自衛消防訓練を実施するときは、あらかじめ消防機関へ通報する。",null,null,null,"防火管理者"]
[]
[null,"消防設備等点検結果報告",null,null,"法令に定められた期間内（総合点検時の消防用設備等点検結果報告書）",null,null,null,"建物所有者等"]
[]
[]
[null,"↓防火対象物点検報告が必要な場合",null,null,"１年に１回",null,null,null,"管理権原者"]
[null,"▲防火対象物点検結果報告"]
[null,"↓防災管理点検報告が必要な場合",null,null,"１年に１回",null,null,null,"管理権原者"]
[null,"▲防災管理点検結果報告"]
[null,"↓自衛消防組織の設置が必要な場合",null,null,"自衛消防組織を設置したとき、又は変更したとき",null,null,null,"管理権原者"]
[null,"▲自衛消防組織設置（変更）届出"]
[null,"防火対象物工事等計画届出",null,null,"建物の修繕、模様替え、間取り又は天井の高さの変更その他これらに類する工事、客席又は避難通路の変更、用途変更を行う場合は、工事に着手する日の７日前までに届け出る。",null,null,null,"管理権原者"]
[]
[]
[]
[]
[null,"防火対象物使用開始届出",null,null,"使用を開始する日の７日前までに届け出て、検査を受ける。",null,null,null,"管理権原者"]
[]
[null,"その他",null,null,"法令に定める時期に届出・連絡等を行う。"]
[null,"（上記以外の法令に基づく届出等）"]
[null,"　管理権原者等は、消防機関へ届出、報告等した上記の書類等を消防計画とともに取りまとめて、"]
[null,"防火管理維持台帳を作成し、整備及び保管する。"]
[]
[11,"　自衛消防隊の編成及び任務等"]
["","　事業所自衛消防隊は、管理権原が及ぶ範囲を担当する。"]
["","　防火対象物自衛消防隊長の命令により、防火対象物全体で活動する。"]
["","　事業所自衛消防隊は、全体についての消防計画に定める防火対象物自衛消防隊の"]
[null,"地区隊となる。★"]
[]
[null,null,"管理権原者",null,null,{"$f":"入力シート!B4","v":0}]
[null,null,"事業所自衛消防隊長",null,null,null,"事業所自衛消防隊長不在時の代行者兼副隊長"]
[null,null,{"$f":"入力シート!B53","v":0},null,null,null,1,{"$f":"入力シート!B54","v":0}]
[null,null,null,null,null,null,2,{"$f":"入力シート!B55","v":0}]
[]
[]
[null,"通報連絡（情報）班",null,null,"災害等発生時の任務",null,null,null,"警戒宣言が発せられた場合等の任務"]
[null,{"$f":"入力シート!B56","v":0},null,null,"　自動火災報知設備の発信機を押す（非常ベルを鳴らす）。\n　大声で周囲に知らせる（他階、他事業所を含む）。\n　１１９番通報する。\n　防災センター等関係先へ連絡する。\n　消防隊への情報提供を行う。",null,null,null,"〇情報収集担当とする。"]
[null,{"$f":"入力シート!B57","v":0},null,null,null,null,null,null,"　テレビ、ラジオ等により、情報を収集する。\n　事業所自衛消防隊長の指示により、必要な情報を収集し、伝達する。"]
[null,{"$f":"入力シート!B58","v":0}]
[]
[]
[]
[]
[]
[null,"初期消火班",null,null,"　避難路を確保し、水バケツ、消火器等を使用して初期消火する。\n　天井に燃え移ったら、消火器による初期消火は注視して避難する。",null,null,null,"〇点検担当とする。"]
[null,{"$f":"入力シート!B61","v":0},null,null,null,null,null,null,"　担当区域の点検を行い、転倒・落下防止等の被害防止措置を実施する。"]
[null,{"$f":"入力シート!B62","v":0}]
[null,{"$f":"入力シート!B63","v":0}]
[]
[null,"避難誘導班",null,null,"　避難口を開放し、避難経路図に従い、避難誘導にあたる。\n　避難誘導は、大声で簡潔に行い、パニック防止に全力をあげる。",null,null,null,"〇災害等発生時の任務と同じ"]
[null,{"$f":"入力シート!B66","v":0},null,null,null,null,null,null,"　警戒宣言が発せられた場合の伝達に先立ち、出入口等に配置につく。\n　警戒宣言が発せられた場合の伝達に伴い避難誘導を行う。"]
[null,{"$f":"入力シート!B67","v":0}]
[null,{"$f":"入力シート!B68","v":0}]
[]
[]
[]
[]
[]
[]
[]
[]
[]
[]
[12,"　訓練"]
["","実施内容等"]
[null,"訓練種別",null,"訓練内容",null,null,null,"実施時期"]
[null,"総合訓練",null,"火災等発生から消防隊到着まで",null,null,null,{"$f":"入力シート!B76","v":0}]
[null,null,null,"の一連の訓練を行う。"]
[null,"部分訓練",null,"消火・通報・避難誘導等を個別",null,null,null,{"$f":"入力シート!B77","v":0}]
[null,null,null,"に行う訓練"]
[null,null,null,"その他",null,null,null,{"$f":"入力シート!B79","v":0}]
[null,null,null,{"$f":"入力シート!B78","v":0}]
["","　実施結果の検討等"]
[null,"　訓練終了後、実施結果について検討し、「自衛消防訓練実施結果記録書」に記録し、以後の"]
[null,"訓練や消防計画の見直しに反映させるものとし、「防火管理維持台帳」に綴じて訓練を行った"]
[null,"日から３年間保管する。"]
[]
[13,"　震災対策"]
[null,"（震災に備えての事前計画）"]
[null,"対策",null,"内容"]
[null,"日常点検",null,"　別表２－１「自主検査チェック表（日常」により行う。"]
[null,null,null,"・火災発生のおそれのあるか所と日常の避難動線を確認する。"]
[null,null,null,"・火気設備・器具の周囲に、転倒、落下のおそれのある物品や可燃物を置いて"]
[null,null,null,"　いないことを確認する。"]
[null,"定期点検",null,"　別表２－２「自主検査チェック表（定期）」により行う。"]
[null,null,null,"・安全な避難の確保のため、避難施設や防火設備の点検を行う。"]
[null,null,null,"・建築物とそれに付随する施設物（看板等）の点検を行う。"]
[null,null,null,"・消防用設備等の点検を行う。"]
[null,"随時点検",null,"　別表３「家具・じゅう器等の転倒・落下・移動防止対策チェック表により"]
[null,null,null,"行う。"]
[null,null,null,"　事務室内、倉庫、避難通路、出入口等の書架、物品棚、複写機等の家具類の"]
[null,null,null,"転倒・落下・移動防止の措置を実施する。"]
[null,null,null,"　危険物、毒物、高圧ガス等の貯蔵・取扱場所の点検、転倒、落下、浸水等に"]
[null,null,null,"よる発火防止措置と送油管等の点検を行う。▲"]
[null,"消火器等の準備と適正管理",null,"　法令基準に基づき消火器等を設置し、適正に維持管理する。"]
[]
[null,"資器材・非常用物品の準備と点検整備",null,"　地震その他の災害に備え、救助・救護等の資器材と非常用物品を確保し、定"]
[null,null,null,"期的に点検整備を行う。"]
[null,"安全避難の確保",null,"　自己事業所の存する地域の危険実態を把握しておくとともに、避難場所を確"]
[null,null,null,"認し、避難方法等の手段を検討する。"]
[null,"従業員への教育・\n訓練",null,"　「防火・防災の手引き（別紙１、別紙２）」に準じて、従業員に対し地震時"]
[null,null,null,"の対応方法等の教育・訓練を行う。"]
[null,"周辺地域との連携",null,"　周辺地域の事業所や住民等との連携・協力に努める。"]
[null,"警戒宣言が発せられた場合等の措置",null,"　警戒宣言が発せられた旨等を事業所内の者に伝達する。"]
[]
[null,"従業員との連絡手段の確保",null,"　通話の輻そうや停電による電話の不通を想定し、従業員との連絡の手段や手"]
[null,null,null,"順をあらかじめ定めておく。"]
[null,"従業員の安否確認",null,"　震災時における従業員の安否確認者（班）及び安否確認手段は、次のとお"]
[null,null,null,"り。"]
[null,null,null,"確認者(班)","優先順位",null,"確認手段"]
[null,null,null,{"$f":"入力シート!B82","v":0},"第１",null,{"$f":"入力シート!B83","v":0}]
[null,null,null,null,"第２",null,{"$f":"入力シート!B84","v":0}]
[null,null,null,null,"第３",null,{"$f":"入力シート!B85","v":0}]
[null,"家族との安否確認手段の確保",null,"　従業員は、震災時における家族との安否確認手段を日頃から家族と話し合"]
[null,null,null,"い、複数の連絡手段（携帯電話用災害用伝言板・SNS・災害用伝言ダイヤル"]
[null,null,null,"（１７１）等）を確保し優先順位を決めておく。"]
[null,"帰宅困難者対策"]
[null,"情報収集",null," 　鉄道等の交通機関の運行状況の情報、余震、津波等の発生危険に関する情"]
[null,null,null,"報の把握に努め、従業員等に適宜伝達する。"]
[null,"従業員等の一斉帰宅の抑制",null,"　公共交通機関が運行を停止し、当分復旧の見通しがない場合は、帰宅困難者"]
[null,null,null,"の発生による混乱防止のため、従業員等に「むやみに移動を開始しない」こと"]
[null,null,null,"を周知する。"]
[null,"施設内待機場所",null,"　従業員等が安全に待機できる場所（施設内待機場所）を確保する。"]
[null,null,null,"施設内待機場所：",null,null,{"$f":"入力シート!B86","v":0}]
[null,"施設内待機のための備蓄品",null,"　従業員等の施設内待機を維持するために、３日分の飲料水、食料その他必要"]
[null,null,null,"な物資（備蓄品）を備蓄する。"]
[null,null,null,"　従業員以外の帰宅困難者用に、従業員用の備蓄の１０％程度を余分に備蓄す"]
[null,null,null,"る。"]
[null,null,null,"（備蓄場所と備蓄品・・・別表４のとおり）"]
[null,"時差退社計画",null,"　従業員の徒歩による帰宅経路を把握し、グループ毎の時差退社計画を作成し"]
[null,null,null,"ておく。"]
[null,null,null,"（時差退社計画表・・・別表５のとおり）"]
[null,"ＰＤＣＡサイクルの実施",null,"　訓練等の結果確認と検証を行い、震災に備えての事前計画を見直し改善する"]
[null,null,null,"取組（ＰＤＣＡ（計画→実行→検証→改善）サイクルを取り入れる。"]
[]
[null,"（震災時の活動計画）"]
[null,"項目",null,"内容"]
[null,"震災時の自衛消防\n活動",null,"①　火災時の自衛消防隊編成（「１１　自衛消防隊の編成及び任務等」）によ"]
[null,null,null,"　る活動を原則とする。"]
[null,null,null,"②　この編成では対応が困難な場合、自衛消防隊長は、担当を増強、移動する"]
[null,null,null,"　などの対応により効果的な自衛消防活動を行わせる。"]
[null,"緊急地震速報の活用",null,"①　緊急地震速報の受信方法とその場合の行動について従業員等に周知してお"]
[null,null,null,"　き、有効に活用する。"]
[null,null,null,"②　緊急地震速報を受信した場合、周囲の状況に応じて、自身の身の安全を確"]
[null,null,null,"　保する。"]
[null,"出火防止対策",null,"①　火気設備・器具付近にいる従業員等は、身の安全を確保し、揺れがおさ"]
[null,null,null,"　まった後、電源、燃料等の遮断等を行う。"]
[null,null,null,"②　二次災害の予防のため、建物や火気設備・器具、危険物施設等について点"]
[null,null,null,"　検を実施し、異常が認められた場合は、応急措置を行う。"]
[null,"危険物等に対する緊急措置▲",null,"　危険物、毒物、高圧ガス等の流出又は漏えいが発生した場合は、自衛消防隊"]
[null,null,null,"により応急措置を行い、消防機関その他関係者に連絡する。"]
[null,"初期消火",null,"　火災発見者は、周囲の者に大声で知らせ、任務分担に基づく活動を開始する。"]
[null,null,null,"初期消火班は、消防用設備等を活用し、初期消火を行う。"]
[null,"初期救助・救護",null,"　要救助者を発見した場合は、自衛消防隊長に知らせ、周囲の者や救出救護班"]
[null,null,null,"と協力して初期救助・救護を行う。"]
[null,"被害状況の確認",null,"①　別表６「施設の安全点検のためのチェックリスト」により施設内の被害状"]
[null,null,null,"　況を確認する。"]
[null,null,null,"②　災害関連情報等を収集し、施設周辺の被害状況等を確認する。"]
[null,"施設内待機の判断",null,"　管理権原者は、施設内外の被害状況を把握し、施設内で待機できるかを判断"]
[null,null,null,"する。"]
[null,"施設内待機の指示",null,"　施設内待機が可能と判断された場合には、",null,null,null,null,{"$f":"入力シート!B88","v":0}]
[null,null,null,"を用いて、「むやみに移動を開始しない」ことを従業員等に徹底する。"]
[null,"必要な情報の把握と指示",null,"　自衛消防隊長は、施設内外の状況を把握し、必要な情報を自衛消防隊に周知"]
[null,null,null,"徹底し、混乱防止のため在館者に適切な指示を行う。"]
[null,"避難場所への誘導",null,"　施設の周辺や施設の被害状況等から施設の安全性が確保できないと判断した"]
[null,null,null,"場合は、東京都や区市町村からの一時滞在施設等の開設情報等をもとに従業員"]
[null,null,null,"等を誘導する。"]
[null,null,null,"　危険が予想される場合は、迅速に避難することとし、在館者等を避難場所へ"]
[null,null,null,"誘導するときは、順路、被害状況等について説明する。"]
[null,null,null,"避難場所：",null,null,{"$f":"入力シート!B89","v":0}]
[null,null,null,"避難方法：",null,null,{"$f":"入力シート!B90","v":0}]
[null,"周辺地域と連携した活動の実施",null,"　管理権原者は、事前に周辺事業所と震災時の応援体制を図り、必要に応じ、"]
[null,null,null,"周辺地域の消火活動、救助・救護活動を行う。"]
[null,"従業員の安否確認",null,"　安否確認者（班）は、事前に定めた安否確認手段に基づき、速やかに従業員"]
[null,null,null,"の安否確認を実施する。"]
[null,"家族等の安否確認",null,"　従業員は、家族等の安否を確認し、安否確認者（班）に報告する。"]
[]
[null,"従業員の帰宅",null,"　災害状況や公共交通機関の運行状況、幹線道路の混雑状況等から判断し、従"]
[null,null,null,"業員等が安全に帰宅できるようになった場合は、別表５「震災時における時差"]
[null,null,null,"退社計画表」に基づき、方面別に集団で帰宅を実施する。"]
[null,"その他必要な措置",null,"津波対策▲・・・",null,null,{"$f":"入力シート!B92","v":0}]
[null,null,null,"液状化対策▲・・・",null,null,{"$f":"入力シート!B94","v":0}]
[]
[null,"（施設再開までの復旧計画）"]
[null,"項目",null,"内容"]
[null,"ガス、電気、上下水道、通信等途絶時の対策",null,"　ガス、電気、上下水道、通信途絶時は、非常用電源や非常用物品等を活用し対応する。"]
[]
[]
[null,"火気・電気に起因する2次災害の発生防止",null,"　火気設備・器具、電気器具等からの火災発生要因の排除又は使用禁止措置を行う。"]
[]
[]
[null,"▲危険物に起因する２次災害の発生防止",null,"　危険物品からの火災発生要因の排除、安全な場所への移動又は立入禁止措置"]
[null,null,null,"を行う。"]
[null,"消防用設備等の使用可否の把握",null,"　２次災害の発生に備えて、消防用設備等の使用可否の状況を把握し、使用可"]
[null,null,null,"能な消火器等を安全な場所に集結しておく。"]
[null,"復旧作業等の実施",null,"①　復旧作業者に対する出火防止等の教育を徹底する。"]
[null,null,null,"②　復旧作業に伴う立入禁止区域及び避難経路を指定し、従業員及びその他"]
[null,null,null,"　防火管理業務に従事する者に周知徹底する。"]
[null,null,null,"③　復旧作業しながら建物を使用し事業活動を行う場合は、相互の連絡を徹底"]
[null,null,null,"　し、監視を強化する。"]
[]
[14,"　大規模テロ等に伴う災害対策●※"]
[]
[null,"項目",null,"内容"]
[null,"事前の備え",null,"　マスク、防護衣等の避難誘導のための資器材を配置した場合、定期に点検・整備を行なう。"]
[]
[null,"自衛消防隊の編成と任務",null,"　「１１　事業所自衛消防隊の編成及び任務等」に準じる。"]
[null,null,null,"　この編成では対応が困難な場合、自衛消防隊長は担当を増強、移動するなど"]
[null,null,null,"の対応により、効果的な自衛消防活動を行わせる。"]
[null,"自衛消防隊の活動",null,"①　通報連絡、在館者の避難及び避難のために必要な最小限の身体防護措置を"]
[null,null,null,"　を行う。"]
[null,null,null,"②　行政機関からの指示等に従うことを原則とする。"]
[null,null,null,"③　行政機関からの指示等は、確実に収集できる体制をとり、指示があった場"]
[null,null,null,"　合は、在館者に確実に伝達する。"]
[null,null,null,"④　自己事業所で発生した場合を除き、原則として屋内にとどまり、行政機関"]
[null,null,null,"　からの指示を待つ。"]
[]
[15,"大雨・強風対策●"]
[]
[null,"項目",null,"内容"]
[null,"事前の備え",null,"①　排水溝等の雨水排水施設を清掃、整備する。"]
[null,null,null,"②　落下危険のある附属物の除去、固定措置を図る。"]
[null,null,null,"③　停電時等に正しい情報が入手できるようラジオ等を備えておく。"]
[null,null,null,"④　止水板、土のう、排水ポンプ等の水災害に対応する資器材を定期的に整備、"]
[null,null,null,"　点検する。"]
[null,"自衛消防隊の編成と任務",null,"　「１１　事業所自衛消防隊の編成及び任務等」に準じる。"]
[null,null,null,"　この編成では対応が困難な場合、自衛消防隊長は担当を増強、移動するなど"]
[null,null,null,"の対応により、効果的な自衛消防活動を行わせる。"]
[null,"自衛消防隊の活動",null,"大雨洪水警報の発令等、災害発生危険が高まった場合"]
[null,null,null,"・建物内外の定期巡回"]
[null,null,null,"・屋外に通じる窓、扉の閉鎖"]
[null,null,null,"道路の冠水等、地下部分への浸水危険がある場合"]
[null,null,null,"・資器材の点検、排水ポンプの作動確認"]
[null,null,null,"・地下部分への立入制限"]
[null,null,null,"・エレベーターの使用制限"]
[]
[16,"　受傷事故等に係る自衛消防対策●"]
[]
[null,"項目",null,"内容"]
[null,"事前の備え",null,"①　従業員の救命講習の受講等の促進を図る。"]
[null,null,null,"②　応急救護資器材を配置し、定期的にに点検・整備を行なう。"]
[null,"自衛消防隊の編成と任務",null,"　「１１　事業所自衛消防隊の編成及び任務等」に準じる。"]
[null,null,null,"　この編成では対応が困難な場合、自衛消防隊長は担当を増強、移動するなど"]
[null,null,null,"の対応により、効果的な自衛消防活動を行わせる。"]
[null,"自衛消防隊の活動",null,"①　傷病者のそばにいる者は、応急手当を行う。"]
[null,null,null,"　　状況により病院へ搬送又は救急車の要請（１１９番通報）を行う。"]
[null,null,null,"②　応急救護の知識・技術を持った者がいる場合は、応援要請を行う。"]
[null,null,null,"③　人員に余裕のある場合、玄関等から救急隊を、現場へ誘導する。"]
[null,null,null,"④　救急隊到着時は、救急隊員の指示に従う。"]
[]
[17,"　その他防火管理上必要な事項"]
["","緊急連絡先",null,"氏名",{"$f":"入力シート!B106","v":0},null,null,"電話",{"$f":"入力シート!B107","v":0}]
["","　防火管理業務の全体を把握するため、別添えの消防計画概要を",null,null,null,null,null,null,{"$f":"入力シート!B108","v":0}]
[null,"に掲示し、活用する。"]
[]
[18,"避難経路図の掲示"]

{"sheet":"別表１","index":3,"n_rows":52,"n_cols":24,"rows_kept":52,"cut":false,"hidden":false,"merged":[[4,0,4,4],[4,5,4,24],[5,0,5,16],[5,17,5,24],[6,17,6,24],[7,17,7,24],[8,17,8,24],[9,17,9,24],[10,17,10,24],[11,17,11,24],[12,0,12,5],[13,0,13,5],[6,6,6,16],[7,6,7,16],[8,6,8,16],[9,6,9,16],[10,6,10,16],[11,6,11,16],[12,6,12,16],[13,6,13,16],[8,0,8,5],[7,0,7,5],[6,0,6,5],[9,0,9,5],[10,0,10,5],[11,0,11,5],[16,3,16,16],[17,3,17,16],[18,3,18,16],[19,3,19,5],[19,7,19,9],[19,11,19,16],[12,17,12,24],[13,17,13,24],[14,0,14,16],[14,17,14,24],[15,3,15,16],[15,1,23,1],[15,18,15,24],[16,18,16,24],[15,0,27,0],[24,1,27,1],[26,8,26,16],[26,17,26,24],[23,3,23,16],[26,2,26,7],[25,2,25,7],[24,2,24,7],[17,18,17,24],[18,18,18,24],[19,18,19,19],[20,18,20,19],[21,18,21,19],[21,21,21,22],[20,21,20,22],[19,21,19,22],[19,23,19,24],[20,23,20,24],[20,3,20,5],[21,3,21,5],[20,7,20,9],[20,11,20,16],[21,7,21,16],[22,18,22,19],[23,18,23,24],[22,3,22,16],[28,0,40,0],[28,1,36,1],[28,3,28,16],[28,18,28,24],[29,3,29,16],[29,18,29,24],[30,3,30,16],[30,18,30,24],[27,2,27,7],[27,8,27,16],[27,17,27,24],[33,23,33,24],[31,3,31,16],[31,18,31,24],[32,3,32,5],[32,7,32,9],[32,11,32,16],[34,3,34,5],[34,7,34,16],[34,18,34,19],[34,21,34,22],[41,3,41,16],[41,18,41,24],[24,8,24,16],[25,8,25,16],[24,17,24,24],[25,17,25,24],[33,11,33,16],[33,18,33,19],[33,21,33,22],[39,8,39,16],[39,17,39,24],[35,3,35,16],[35,18,35,19],[33,3,33,5],[33,7,33,9],[42,18,42,24],[32,18,32,19],[32,21,32,22],[32,23,32,24],[2,0,2,24],[3,23,3,24],[3,18,3,22],[40,2,40,7],[40,8,40,16],[40,17,40,24],[41,0,50,0],[41,1,46,1],[36,3,36,16],[36,18,36,24],[37,1,40,1],[37,2,37,7],[37,8,37,16],[37,17,37,24],[38,2,38,7],[38,8,38,16],[38,17,38,24],[39,2,39,7],[45,3,45,5],[42,3,42,16],[51,0,51,24],[46,3,46,16],[46,18,46,24],[47,1,50,1],[47,2,47,7],[47,8,47,16],[47,17,47,24],[48,2,48,7],[48,8,48,16],[48,17,48,24],[49,2,49,7],[45,7,45,16],[45,18,45,19],[45,21,45,22],[43,23,43,24],[49,8,49,16],[49,17,49,24],[50,2,50,7],[50,8,50,16],[50,17,50,24],[44,3,44,5],[44,7,44,9],[44,11,44,16],[44,18,44,19],[44,21,44,22],[44,23,44,24],[43,3,43,5],[43,7,43,9],[43,11,43,16],[43,18,43,19],[43,21,43,22]]}
["▲別表１（防火・防災管理業務の一部を第三者へ委託している場合）"]
[]
["防火・防災管理業務の一部委託状況表"]
[null,null,null,null,null,null,null,null,null,null,null,null,null,null,null,null,null,null,{"$f":"入力シート!B9","v":"令和●年●月●日"},null,null,null,null,"現在"]
["再受託者の有無"]
["防火・防災管理業務の一部受託者の氏名及び住所等\n（法人にあっては名称及び主たる事務所の所在地）",null,null,null,null,null,null,null,null,null,null,null,null,null,null,null,null,"受託者が再委託する場合\n再受託者の氏名及び住所等"]
["氏名（名称）"]
["住所（所在地）"]
["担当事務所（電話番号）"]
["所在地"]
["電話番号"]
["〔教育担当者氏名〕"]
["〔講習等種別・番号〕"]
["〔教育計画〕"]
["受託者の行う防火・防災管理業務の範囲及び方法については下記のとおり",null,null,null,null,null,null,null,null,null,null,null,null,null,null,null,null,"再受託者の防火・防災管理業務の範囲・方法については下記のとおり"]
["常駐方式","範囲","□","出火防止業務（火気使用箇所の点検監視など）",null,null,null,null,null,null,null,null,null,null,null,null,null,"□","同左"]
[null,null,"□","避難又は防火上必要な構造及び設備の維持管理",null,null,null,null,null,null,null,null,null,null,null,null,null,"□","同左"]
[null,null,"□","消防・防災設備等の監視・操作業務",null,null,null,null,null,null,null,null,null,null,null,null,null,"□","同左"]
[null,null,"□","火災、地震その他の災害等が発生した場合の自衛消防活動",null,null,null,null,null,null,null,null,null,null,null,null,null,"□","同左"]
[null,null,"□","火災",null,null,"□","地震",null,null,"□","その他（　　　　）",null,null,null,null,null,"□","同左　　",null,"□","同左",null,"同左"]
[null,null,"□","初期消火",null,null,"□","避難誘導",null,null,"□","救出・応急救護",null,null,null,null,null,"□","同左　　",null,"□","同左",null,"同左"]
[null,null,"□","通報連絡",null,null,"□","その他（　　　　　　　　　　）",null,null,null,null,null,null,null,null,null,"□","同左　　",null,"□","同左"]
[null,null,"□","自衛消防訓練指導",null,null,null,null,null,null,null,null,null,null,null,null,null,"□","同左"]
[null,null,"□","その他（　　　　　　　　　　）",null,null,null,null,null,null,null,null,null,null,null,null,null,"□","その他（　　　　　　　）"]
[null,"方法","常駐場所"]
[null,null,"常駐人員"]
[null,null,"委託する防火対象物の区域"]
[null,null,"委託する時間帯"]
["巡回方式","範囲","□","出火防止業務（火気使用箇所の点検監視など）",null,null,null,null,null,null,null,null,null,null,null,null,null,"□","同左"]
[null,null,"□","避難又は防火上必要な構造及び設備の維持管理",null,null,null,null,null,null,null,null,null,null,null,null,null,"□","同左"]
[null,null,"□","消防・防災設備等の監視・操作業務",null,null,null,null,null,null,null,null,null,null,null,null,null,"□","同左"]
[null,null,"□","火災、地震その他の災害等が発生した場合の自衛消防活動",null,null,null,null,null,null,null,null,null,null,null,null,null,"□","同左"]
[null,null,"□","火災",null,null,"□","地震",null,null,"□","その他（　　　　）",null,null,null,null,null,"□","同左　　",null,"□","同左",null,"同左"]
[null,null,"□","初期消火",null,null,"□","避難誘導",null,null,"□","救出・応急救護",null,null,null,null,null,"□","同左　　",null,"□","同左",null,"同左"]
[null,null,"□","通報連絡",null,null,"□","その他（　　　　　　　　　　）",null,null,null,null,null,null,null,null,null,"□","同左　　",null,"□","同左"]
[null,null,"□","自衛消防訓練指導",null,null,null,null,null,null,null,null,null,null,null,null,null,"□","同左"]
[null,null,"□","その他（　　　　　　　　　　）",null,null,null,null,null,null,null,null,null,null,null,null,null,"□","その他（　　　　　　　）"]
[null,"方法","巡回回数"]
[null,null,"巡回人員"]
[null,null,"委託する防火対象物の区域"]
[null,null,"委託する時間帯"]
["遠隔移報方式","範囲","□","消防・防災設備等の監視・操作業務",null,null,null,null,null,null,null,null,null,null,null,null,null,"□","同左"]
[null,null,"□","火災、地震その他の災害等が発生した場合の自衛消防活動",null,null,null,null,null,null,null,null,null,null,null,null,null,"□","同左"]
[null,null,"□","火災",null,null,"□","地震",null,null,"□","その他（　　　　）",null,null,null,null,null,"□","同左　　",null,"□","同左",null,"同左"]
[null,null,"□","初期消火",null,null,"□","避難誘導",null,null,"□","救出・応急救護",null,null,null,null,null,"□","同左　　",null,"□","同左",null,"同左"]
[null,null,"□","通報連絡",null,null,"□","その他（　　　　　　　　　　）",null,null,null,null,null,null,null,null,null,"□","同左　　",null,"□","同左"]
[null,null,"□","その他（　　　　　　　　　　）",null,null,null,null,null,null,null,null,null,null,null,null,null,"□","その他（　　　　　　　）"]
[null,"方法","現場確認要員の待機場所"]
[null,null,"到着所要時間"]
[null,null,"委託する防火対象物の区域"]
[null,null,"委託する時間帯"]
["（備考）「受託者の行う防火・防災管理業務の範囲」については、該当する項目の□にレ印を付する。"]

{"sheet":"別表２－１","index":4,"n_rows":41,"n_cols":10,"rows_kept":41,"cut":false,"hidden":false,"merged":[[1,0,1,8],[39,8,40,8],[39,9,40,9],[39,0,39,7],[40,0,40,7],[4,0,7,0],[4,1,7,1],[4,2,4,9],[5,2,5,7],[5,8,6,9]]}
["別表２－１"]
["自主検査チェック表（日常）",null,null,null,null,null,null,null,null,"　　　　月"]
[null,null,null,null,null,null,null,null,"検査実施者"]
[]
["日","曜日","検査項目"]
[null,null,"火気管理",null,null,null,null,null,"避難施設・防火戸・出入口等"]
[null,null,"ガス関係","電気関係","裸火関係","喫煙管理","火の元","放火防止"]
[]
[1]
[2]
[3]
[4]
[5]
[6]
[7]
[8]
[9]
[10]
[11]
[12]
[13]
[14]
[15]
[16]
[17]
[18]
[19]
[20]
[21]
[22]
[23]
[24]
[25]
[26]
[27]
[28]
[29]
[30]
[31]
["（備考）不備欠陥がある場合には、直ちに防火管理者に報告する。",null,null,null,null,null,null,null,"防火管理者確認"]
["（判例）〇・・・良　×・・・不備・欠陥　〇×（マルバツ）・・・即時改修"]

{"sheet":"別表２－２","index":5,"n_rows":43,"n_cols":21,"rows_kept":43,"cut":false,"hidden":false,"merged":[[35,20,35,21],[36,20,36,21],[37,20,37,21],[8,20,10,21],[11,20,13,21],[28,20,29,21],[30,20,30,21],[31,20,32,21],[33,20,33,21],[34,20,34,21],[21,20,21,21],[22,20,23,21],[24,20,25,21],[26,20,26,21],[27,20,27,21],[14,20,15,21],[16,20,16,21],[17,20,18,21],[19,20,20,21],[4,20,5,21],[6,20,7,21],[39,0,41,3],[39,4,41,6],[39,8,41,11],[39,12,41,14],[39,16,41,21],[38,0,38,3],[38,4,38,6],[38,8,38,11],[38,12,38,14],[38,16,38,21],[1,0,1,21],[2,0,2,21],[10,2,10,19],[11,2,11,19],[12,2,12,19],[3,20,3,21],[3,0,3,19],[4,2,4,19],[5,2,5,19],[6,2,6,19],[7,2,7,19],[8,2,8,19],[9,2,9,19],[4,0,13,0],[13,2,13,19],[14,2,14,19],[15,2,15,19],[16,2,16,19],[17,2,17,19],[24,0,30,0],[14,0,23,0],[18,2,18,19],[19,2,19,19],[20,2,20,19],[21,2,21,19],[22,2,22,19],[23,2,23,19],[24,2,24,19],[25,2,25,19],[26,2,26,19],[27,2,27,19],[31,0,34,0],[35,0,37,0],[28,2,28,19],[29,2,29,19],[30,2,30,19],[31,1,31,19],[32,2,32,19],[33,2,33,19],[34,2,34,19],[35,2,35,19],[36,2,36,19],[37,2,37,19]]}
["別表２－２"]
["自主検査チェック表（定期）"]
["※確認結果欄記入例：〇…良　×…不備・欠陥　〇に×…即時改修"]
["実施項目及び確認箇所",null,null,null,null,null,null,null,null,null,null,null,null,null,null,null,null,null,null,null,"確認結果"]
["建物構造","","柱・はり・壁・床"]
[null,null,"コンクリートに欠損・ひび割れ・脱落・風化等はないか。"]
[null,"","天井"]
[null,null,"仕上材にはく落・落下のおそれのあるたるみ・ひび割れ等はないか。"]
[null,"","窓枠・サッシ・ガラス"]
[null,null,"窓枠・サッシ等には、ガラス等の落下、又は枠自体のはずれのおそれのある腐"]
[null,null,"食、ゆるみ、著しい変形等がないか。"]
[null,"","外壁・ひさし・パラペット"]
[null,null,"貼石・タイル・モルタル等の仕上材に、はく落・落下のおそれのあるひび割れ・"]
[null,null,"浮き上がり等が生じていないか。"]
["避難施設","","避難通路"]
[null,null,"①　避難通路の幅員が確保されているか。"]
[null,null,"②　避難上支障となる物品等を置いていないか。"]
[null,"","階段"]
[null,null,"階段室に物品が置かれていないか。"]
[null,"","避難階の避難口"]
[null,null,"①　扉の開放方向は避難上支障ないか。"]
[null,null,"②　避難階段等に通じる出入口の幅は適切か。"]
[null,null,"③　避難階段等に通じる出入口・屋外への出入口の付近に物品その他の障害物"]
[null,null,"　はないか。"]
["火気設備・器具","","暖房設備"]
[null,null,"①　可燃物品からの保有距離は適正か。"]
[null,null,"②　異常燃焼時に安全装置は適正に機能するか。"]
[null,null,"③　燃焼器具の周辺部に炭化しているところはないか。"]
[null,"","ガスストーブ、石油ストーブ"]
[null,null,"①　自動停止装置は適正に機能するか。"]
[null,null,"②　火気周囲は整理整頓されているか。"]
["電気設備","電気器具"]
[null,"①","コードに亀裂、劣化、損傷はないか。"]
[null,"②","タコ足の接続を行っていないか。"]
[null,"③","許容電流の範囲内で電気器具を適正に使用しているか。"]
["その他","①"]
[null,"②"]
[null,"③"]
["検査実施者氏名",null,null,null,"検査実施日",null,null,null,"検査実施者氏名",null,null,null,"検査実施日",null,null,null,"防火管理者確認"]
[]
[]
[]
["（備考）　不備欠陥がある場合には、直ちに防火管理者に報告する。"]

{"sheet":"別表３","index":6,"n_rows":39,"n_cols":10,"rows_kept":39,"cut":false,"hidden":false,"merged":[[35,1,35,8],[18,0,18,8],[1,0,1,9],[17,0,17,1],[17,2,17,3],[17,4,17,5],[17,6,17,9],[29,1,29,8],[30,1,30,8],[32,1,32,8],[34,1,34,8],[33,1,33,8],[36,9,38,9],[19,1,19,8],[20,1,20,8],[21,1,21,8],[22,1,22,8],[23,1,23,8],[24,1,24,8],[25,1,25,8],[26,1,26,8],[27,1,27,8],[36,7,38,8],[36,0,36,6],[37,0,37,6],[38,0,38,6],[28,1,28,8],[31,1,31,8]]}
["別表３"]
["家具・じゅう器等の転倒・落下・移動防止対策チェック表"]
[]
[]
[]
[]
[]
[]
[]
[]
[]
[]
[]
[]
[]
[]
[]
["実施日",null,null,null,"検査実施者"]
["項目",null,null,null,null,null,null,null,null,"点検結果"]
[1,"背の高い家具を単独で置いていない"]
[2,"安定の悪い家具は背合わせに連結している"]
[3,"壁面収納は壁・床に固定している"]
[4,"二段重ね家具は上下連結している"]
[5,"ローパーティションは転倒しにくい「コの字型」「H型」のレイアウトにし、床に固定している"]
[6,"OA機器は落下防止してある"]
[7,"引出し、扉の開き防止対策をしている"]
[8,"時計、額縁、掲示板等は落下しないように固定している"]
[9,"ガラスには飛散防止フィルムを貼っている"]
[10,"避難路に倒れやすいものはない"]
[11,"家具、じゅう器等の天板上には物を置いていない"]
[12,"収納物がはみ出したり、重心が高くなっていない"]
[13,"危険な収納物（薬品、可燃物等）がない"]
[14,"デスクの下に物を置いていない"]
[15,"引出し、扉は必ず閉めている"]
[16,"ガラス窓の前に倒れやすいものを置いていない"]
[17,"コピー機は適切な方法で転倒・移動防止対策をしている"]
["（備考）不備・欠陥がある場合には、防火・防災管理者に報告する。",null,null,null,null,null,null,"防火管理者\n確認"]
["実施しない項目は斜線とする。"]
["（判例）〇…良　×…不備・欠陥　〇×…即時改修"]

{"sheet":"別表４","index":7,"n_rows":30,"n_cols":8,"rows_kept":30,"cut":false,"hidden":false,"merged":[[1,0,1,8],[27,6,27,8],[28,6,28,8],[29,6,29,8],[30,6,30,8],[3,0,13,1],[15,0,15,1],[16,0,30,1],[16,2,30,2],[22,6,22,8],[23,6,23,8],[24,6,24,8],[25,6,25,8],[26,6,26,8],[17,6,17,8],[18,6,18,8],[19,6,19,8],[20,6,20,8],[21,6,21,8],[12,6,12,8],[13,6,13,8],[14,6,14,8],[15,6,15,8],[16,6,16,8],[28,3,28,5],[10,2,15,2],[3,2,5,2],[3,6,3,8],[4,6,4,8],[5,6,5,8],[6,6,6,8],[7,6,7,8],[8,6,8,8],[9,6,9,8],[10,6,10,8],[11,6,11,8],[23,3,23,5],[24,3,24,5],[25,3,25,5],[26,3,26,5],[27,3,27,5],[18,3,18,5],[19,3,19,5],[20,3,20,5],[21,3,21,5],[22,3,22,5],[13,3,13,5],[14,3,14,5],[15,3,15,5],[16,3,16,5],[17,3,17,5],[2,2,2,5],[2,7,2,8],[2,0,2,1],[7,2,9,2],[30,3,30,5],[29,3,29,5],[3,3,3,5],[4,3,4,5],[5,3,5,5],[6,3,6,5],[7,3,7,5],[8,3,8,5],[9,3,9,5],[10,3,10,5],[11,3,11,5],[12,3,12,5]]}
["別表４"]
["一斉帰宅抑制における従業員等のための備蓄（例）"]
["備蓄場所",null,"備蓄品\n（１人分／日の備蓄量）",null,null,null,{"$f":"入力シート!B113","v":0},"人／３日分の備蓄量"]
[null,null,"食料品","アルファ化米（３食分）"]
[null,null,null,"乾パン（１缶）"]
[null,null,null,"缶詰（３缶）"]
[null,null,"飲料水","ミネラルウォーター（３）"]
[null,null,"救急医療薬品類","消毒液"]
[null,null,null,"ばんそうこう"]
[null,null,null,"風邪薬"]
[null,null,"▲要配慮者用","簡易ベッド"]
[null,null,null,"簡易間仕切り壁"]
[null,null,null,"乳幼児用食品"]
[null,null,null,"粉ミルク"]
[{"$f":"入力シート!B111","v":0},"階",null,"哺乳器"]
[{"$f":"入力シート!B112","v":0},null,null,"車いす"]
[null,null,"その他の物資","毛布・保温シート等（１枚／人）"]
[null,null,null,"簡易トイレ"]
[null,null,null,"敷物・ブルーシート等"]
[null,null,null,"携帯ラジオ"]
[null,null,null,"懐中電灯"]
[null,null,null,"乾電池（単１から単４）"]
[null,null,null,"使い捨てカイロ（３個）"]
[null,null,null,"ウェットティッシュ"]
[null,null,null,"非常用発電機"]
[null,null,null,"工具類"]
[null,null,null,"ヘルメット"]
[null,null,null,"軍手"]
[null,null,null,"地図（１都３県）"]
[null,null,null,"拡声器"]

{"sheet":"別表５","index":8,"n_rows":36,"n_cols":45,"rows_kept":36,"cut":false,"hidden":false,"merged":[[3,1,5,1],[3,2,5,8],[3,0,5,0],[3,40,3,46],[4,40,4,46],[5,40,5,46],[6,9,6,17],[7,9,7,17],[8,9,8,17],[6,18,6,28],[7,18,7,28],[8,18,8,28],[6,29,6,31],[3,32,5,39],[3,9,3,17],[4,9,5,17],[3,18,3,28],[4,18,4,28],[5,18,5,28],[3,29,3,31],[4,29,5,31],[6,2,8,8],[6,1,8,1],[13,45,13,46],[14,45,14,46],[14,42,14,43],[13,42,13,43],[9,1,11,1],[9,2,11,8],[9,9,9,17],[9,18,9,28],[7,29,8,31],[6,32,8,39],[6,40,6,46],[7,40,7,41],[8,40,8,41],[10,9,10,17],[10,18,10,28],[10,29,11,31],[10,40,10,41],[11,9,11,17],[11,18,11,28],[11,40,11,41],[11,42,11,43],[10,45,10,46],[11,45,11,46],[15,0,23,0],[15,1,17,1],[15,2,17,8],[15,9,15,17],[15,18,15,28],[18,1,20,1],[18,2,20,8],[18,9,18,17],[18,18,18,28],[22,9,22,17],[22,18,22,28],[15,29,15,31],[15,32,17,39],[15,40,15,46],[16,9,16,17],[16,18,16,28],[16,29,17,31],[16,40,16,41],[17,9,17,17],[17,18,17,28],[17,40,17,41],[18,29,18,31],[18,32,20,39],[18,40,18,46],[19,9,19,17],[19,18,19,28],[19,29,20,31],[19,40,19,41],[20,9,20,17],[20,18,20,28],[20,40,20,41],[20,45,20,46],[20,42,20,43],[22,29,23,31],[22,40,22,41],[23,9,23,17],[23,18,23,28],[23,40,23,41],[21,1,23,1],[21,2,23,8],[21,9,21,17],[21,18,21,28],[21,29,21,31],[21,32,23,39],[26,9,26,17],[33,0,33,3],[34,0,34,3],[35,0,35,3],[24,1,26,1],[24,2,26,8],[30,40,30,46],[31,9,31,17],[31,18,31,28],[31,29,32,31],[31,40,31,41],[32,9,32,17],[32,18,32,28],[32,40,32,41],[30,1,32,1],[30,2,32,8],[30,9,30,17],[30,18,30,28],[30,29,30,31],[30,32,32,39],[28,18,28,28],[27,1,29,1],[28,29,29,31],[28,40,28,41],[29,9,29,17],[29,18,29,28],[29,40,29,41],[24,0,32,0],[26,18,26,28],[26,40,26,41],[27,2,29,8],[27,9,27,17],[27,18,27,28],[27,29,27,31],[27,32,29,39],[27,40,27,46],[28,9,28,17],[24,9,24,17],[24,18,24,28],[24,29,24,31],[24,32,26,39],[24,40,24,46],[25,9,25,17],[25,18,25,28],[25,29,26,31],[25,40,25,41],[29,45,29,46],[29,42,29,43],[2,0,2,46],[7,42,7,43],[7,45,7,46],[8,45,8,46],[8,42,8,43],[10,42,10,43],[6,0,14,0],[12,40,12,46],[13,9,13,17],[13,18,13,28],[13,29,14,31],[13,40,13,41],[14,9,14,17],[14,18,14,28],[14,40,14,41],[12,1,14,1],[12,2,14,8],[12,9,12,17],[12,18,12,28],[12,29,12,31],[12,32,14,39],[9,29,9,31],[9,32,11,39],[9,40,9,46],[22,42,22,43],[22,45,22,46],[23,45,23,46],[23,42,23,43],[16,42,16,43],[16,45,16,46],[17,45,17,46],[17,42,17,43],[19,42,19,43],[19,45,19,46],[21,40,21,46],[31,42,31,43],[31,45,31,46],[32,45,32,46],[32,42,32,43],[25,42,25,43],[25,45,25,46],[26,45,26,46],[26,42,26,43],[28,42,28,43],[28,45,28,46]]}
["別紙５"]
[]
["震災時における時差退社計画（例）"]
["優先順位","家庭内事情","氏名",null,null,null,null,null,null,"自宅住所",null,null,null,null,null,null,null,null,"帰宅ルートの概要",null,null,null,null,null,null,null,null,null,null,"距離",null,null,"付加的要素",null,null,null,null,null,null,null,"帰宅グループ"]
[null,null,null,null,null,null,null,null,null,"連絡先",null,null,null,null,null,null,null,null,"主要路線",null,null,null,null,null,null,null,null,null,null,"予測時間",null,null,null,null,null,null,null,null,null,null,"開始時刻"]
[null,null,null,null,null,null,null,null,null,null,null,null,null,null,null,null,null,null,"通常の通勤経路",null,null,null,null,null,null,null,null,null,null,null,null,null,null,null,null,null,null,null,null,null,"到着時刻"]
[1]
[null,null,null,null,null,null,null,null,null,null,null,null,null,null,null,null,null,null,null,null,null,null,null,null,null,null,null,null,null,null,null,null,null,null,null,null,null,null,null,null,"開始",null,null,null,"："]
[null,null,null,null,null,null,null,null,null,"(Eﾒｰﾙ)",null,null,null,null,null,null,null,null,null,null,null,null,null,null,null,null,null,null,null,null,null,null,null,null,null,null,null,null,null,null,"到着",null,null,null,"："]
[]
[null,null,null,null,null,null,null,null,null,null,null,null,null,null,null,null,null,null,null,null,null,null,null,null,null,null,null,null,null,null,null,null,null,null,null,null,null,null,null,null,"開始",null,null,null,"："]
[null,null,null,null,null,null,null,null,null,"(Eﾒｰﾙ)",null,null,null,null,null,null,null,null,null,null,null,null,null,null,null,null,null,null,null,null,null,null,null,null,null,null,null,null,null,null,"到着",null,null,null,"："]
[]
[null,null,null,null,null,null,null,null,null,null,null,null,null,null,null,null,null,null,null,null,null,null,null,null,null,null,null,null,null,null,null,null,null,null,null,null,null,null,null,null,"開始",null,null,null,"："]
[null,null,null,null,null,null,null,null,null,"(Eﾒｰﾙ)",null,null,null,null,null,null,null,null,null,null,null,null,null,null,null,null,null,null,null,null,null,null,null,null,null,null,null,null,null,null,"到着",null,null,null,"："]
[2]
[null,null,null,null,null,null,null,null,null,null,null,null,null,null,null,null,null,null,null,null,null,null,null,null,null,null,null,null,null,null,null,null,null,null,null,null,null,null,null,null,"開始",null,null,null,"："]
[null,null,null,null,null,null,null,null,null,"(Eﾒｰﾙ)",null,null,null,null,null,null,null,null,null,null,null,null,null,null,null,null,null,null,null,null,null,null,null,null,null,null,null,null,null,null,"到着",null,null,null,"："]
[]
[null,null,null,null,null,null,null,null,null,null,null,null,null,null,null,null,null,null,null,null,null,null,null,null,null,null,null,null,null,null,null,null,null,null,null,null,null,null,null,null,"開始",null,null,null,"："]
[null,null,null,null,null,null,null,null,null,"(Eﾒｰﾙ)",null,null,null,null,null,null,null,null,null,null,null,null,null,null,null,null,null,null,null,null,null,null,null,null,null,null,null,null,null,null,"到着",null,null,null,"："]
[]
[null,null,null,null,null,null,null,null,null,null,null,null,null,null,null,null,null,null,null,null,null,null,null,null,null,null,null,null,null,null,null,null,null,null,null,null,null,null,null,null,"開始",null,null,null,"："]
[null,null,null,null,null,null,null,null,null,"(Eﾒｰﾙ)",null,null,null,null,null,null,null,null,null,null,null,null,null,null,null,null,null,null,null,null,null,null,null,null,null,null,null,null,null,null,"到着",null,null,null,"："]
[3]
[null,null,null,null,null,null,null,null,null,null,null,null,null,null,null,null,null,null,null,null,null,null,null,null,null,null,null,null,null,null,null,null,null,null,null,null,null,null,null,null,"開始",null,null,null,"："]
[null,null,null,null,null,null,null,null,null,"(Eﾒｰﾙ)",null,null,null,null,null,null,null,null,null,null,null,null,null,null,null,null,null,null,null,null,null,null,null,null,null,null,null,null,null,null,"到着",null,null,null,"："]
[]
[null,null,null,null,null,null,null,null,null,null,null,null,null,null,null,null,null,null,null,null,null,null,null,null,null,null,null,null,null,null,null,null,null,null,null,null,null,null,null,null,"開始",null,null,null,"："]
[null,null,null,null,null,null,null,null,null,"(Eﾒｰﾙ)",null,null,null,null,null,null,null,null,null,null,null,null,null,null,null,null,null,null,null,null,null,null,null,null,null,null,null,null,null,null,"到着",null,null,null,"："]
[]
[null,null,null,null,null,null,null,null,null,null,null,null,null,null,null,null,null,null,null,null,null,null,null,null,null,null,null,null,null,null,null,null,null,null,null,null,null,null,null,null,"開始",null,null,null,"："]
[null,null,null,null,null,null,null,null,null,"(Eﾒｰﾙ)",null,null,null,null,null,null,null,null,null,null,null,null,null,null,null,null,null,null,null,null,null,null,null,null,null,null,null,null,null,null,"到着",null,null,null,"："]
["第１優先順位",null,null,null,"：","家庭内事情のある者、勤務地直近（おおむね１０ｋｍ以内）に居住しており徒歩帰宅が可能な者"]
["第２優先順位",null,null,null,"：","勤務地からおおむね２０ｋｍ以内の居住者で、帰宅ルートの安全性が確認できた者"]
["第３優先順位",null,null,null,"：","勤務地からおおむね２０ｋｍ以上の居住者で、帰宅ルートの安全性が確認できた者"]

{"sheet":"別表６","index":9,"n_rows":55,"n_cols":5,"rows_kept":55,"cut":false,"hidden":false,"merged":[[2,0,3,1],[2,2,3,2],[4,0,4,4],[5,0,7,0],[5,1,7,1],[6,2,7,2],[6,3,7,3],[8,0,10,0],[8,1,10,1],[9,2,10,2],[9,3,10,3],[11,0,14,0],[11,1,14,1],[13,2,14,2],[13,3,14,3],[15,0,15,4],[16,0,17,0],[16,1,17,1],[18,0,21,0],[18,1,21,1],[20,2,21,2],[20,3,21,3],[22,0,24,0],[22,1,24,1],[23,2,24,2],[23,3,24,3],[26,0,27,0],[26,1,27,1],[39,3,40,3],[28,0,29,0],[28,1,29,1],[30,0,31,0],[30,1,31,1],[32,0,32,4],[33,0,35,0],[33,1,35,1],[36,0,38,0],[36,1,38,1],[39,0,40,0],[39,1,40,1],[39,2,40,2],[45,1,46,1],[45,2,46,2],[45,3,46,3],[41,0,42,0],[41,1,42,1],[41,2,42,2],[41,3,42,3],[43,0,44,0],[43,1,44,1],[53,3,54,3],[53,0,54,0],[53,1,54,1],[53,2,54,2],[1,0,1,4],[34,4,35,4],[47,3,48,3],[47,2,48,2],[47,1,48,1],[47,0,48,0],[51,3,52,3],[51,2,52,2],[51,1,52,1],[51,0,52,0],[49,0,49,4],[45,0,46,0]]}
["別表６"]
["施設の安全点検のためのチェックリスト"]
["点検項目",null,"点検内容","判定","該当する場合の"]
[null,null,null,"（該当）","対処・応急対応等"]
["施設全体"]
[1,"建物（傾斜・沈下）","傾いている。沈下している。",null,"建物を退去"]
[null,null,"傾いているように感じる。",null,"要注意"]
[null,null,null,null,"→専門家へ詳細診断を要請"]
[2,"建物（倒壊危険性）","大きなX字状のひび割れが多数あり、コンクリートのはく落も著しく、鉄筋がかなり露出している。壁の向こう側が透けて見える。",null,"建物を退去"]
[null,null,"斜めやX字形のひび割れがあるが、コンクリートのはく落はわずかである。",null,"要注意"]
[null,null,null,null,"→専門家へ詳細診断を要請"]
[3,"隣接建築物・周辺地盤","隣接建築物や鉄塔等が施設の方向に傾いている。",null,"建物を退去"]
[null,null,"周辺地盤が大きく陥没又は隆起している。",null,"建物を退去"]
[null,null,"隣接建築物の損傷や周辺地盤の地割れがあるが、施設への影響はないと考えられる。",null,"要注意"]
[null,null,null,null,"→専門家へ詳細診断を要請"]
["施設内部（居室・通路等）"]
[1,"床","傾いている、又は陥没している。",null,"立入禁止"]
[null,null,"フロア等、床材に損傷が見られる。",null,"要注意/要修理"]
[2,"壁・天井材","間仕切り壁に損傷が見られる。",null,"要注意/要修理"]
[null,null,"天井材が落下している。",null,"立入禁止"]
[null,null,"天井材のズレが見られる。",null,"要注意"]
[null,null,null,null,"→専門家へ詳細診断を要請"]
[3,"廊下・階段","大きなX字状のひび割れが多数あり、コンクリートのはく落も著しく、鉄筋がかなり露出している。壁の向こう側が透けて見える。",null,"立入禁止"]
[null,null,"斜めやX字形のひび割れがあるが、コンクリートのはく落はわずかである。",null,"点検継続"]
[null,null,null,null,"→専門家へ詳細診断を要請"]
[4,"ドア","ドアが外れている、又は変形している。",null,"要注意/要修理"]
[5,"窓枠・窓ガラス","窓枠が外れている、又は変形している。",null,"要注意/要修理"]
[null,null,"窓が割れている、又はひびがある。",null,"要注意/要修理"]
[6,"照明器具・吊り器具","照明器具・吊り器具が落下している。",null,"要注意/要修理"]
[null,null,"照明器具・吊り器具のズレが見られる。",null,"要注意/要修理"]
[7,"家具等","家具等が転倒している。",null,"要注意/要修理/要固定"]
[null,null,"食器等が散乱している。",null,"要注意/要復旧"]
["設備等"]
[1,"電力","外部からの電力供給が停止している。（商用電源の途絶）",null,"代替手段の確保/要復旧"]
[null,null,"照明が消えている。",null,"→（例）非常用電源を稼働"]
[null,null,"空調が停止している。"]
[2,"エレベーター","停止している。",null,"要復旧"]
[null,null,"警報ランプ、ブザー点灯、鳴動している。",null,"→メンテナンス業者に連絡"]
[null,null,"カゴ内に人が閉じ込められている。",null,"→メンテナンス業者又は消防機関に連絡"]
[3,"上水道","停止している。",null,"代替手段の確保/要復旧"]
[null,null,null,null,"→(例）備蓄品の利用"]
[4,"下水道・トイレ","水が流れない（あふれている）。",null,"使用中止/代替手段の確保/要復旧　"]
[null,null,null,null,"→（例）災害用トイレの利用"]
[5,"ガス","異臭、異音、煙が発生している。",null,"立入禁止/要復旧"]
[null,null,"停止している。",null,"要復旧"]
[6,"通信・電話","停止している。",null,"代替手段の確保/要復旧"]
[null,null,null,null,"→（例）衛星携帯電話、無線機の利用"]
[7,"消防用設備等","故障・損傷している。",null,"代替手段の確保/要復旧"]
[null,null,null,null,"→消防設備業者に連絡"]
["セキュリティ"]
[1,"防火シャッター","閉鎖している。",null,"要復旧"]
[2,"非常階段・非常用出口","閉鎖している（通行不可である）。",null,"要復旧"]
[null,null,null,null,"→復旧できない場合、立入禁止"]
[3,"入退室・施錠管理","セキュリティが機能していない。",null,"要復旧/要警備員配置"]
[null,null,null,null,"→外部者侵入に要注意　（状況により立入禁止）"]

{"sheet":"別紙１","index":10,"n_rows":43,"n_cols":2,"rows_kept":43,"cut":false,"hidden":false,"merged":[[1,0,1,9],[43,1,43,9],[44,1,44,9]]}
["別紙１"]
["防火・防災の手引き（新入社員用）"]
["〔消防計画について〕"]
[null,"消防計画を熟読、内容をよく把握しておいてください。"]
["〔消火器について〕"]
[1,"消火器の設置場所を覚えてください。"]
[null,"消火器が設置されている場所を自分の持場から近い順に２か所以上覚えてください。"]
[2,"消火器の使い方を覚えてください。"]
[null,"使い方は、消火器の本体に明示されていますので、必ず確認して操作手順を覚えてください。"]
["〔火気設備・器具について〕"]
[1,"火気設備・器具の周辺は、よく整理清掃して可燃物を接して置かないでください。"]
[2,"火気設備・器具は、常に監視できる状態で使用し、その場を離れるときは、必ず消してください。"]
[3,"火気設備・器具にある取扱上の注意事項を守り、故障又は破損したままで使用しないでください。"]
[4,"地震時には、火気設備・器具の使用を中止してください。"]
[5,"終業時には、火気設備・器具の点検を行い、安全を確認してください。"]
["〔喫煙について〕"]
[1,"喫煙は、指定された場所で、吸殻入れを用いて喫煙してください。"]
[2,"タバコの吸殻は必ず水の入ったバケツなどに捨て、可燃ゴミの中には絶対に入れないでください。"]
[3,"終業時には、吸殻の処理（水の入ったバケツに捨てる。）を確実に行ってください。"]
["〔危険物の取扱いについて〕"]
[1,"危険物（シンナー、ベンジンなど）を使用するときは、防火管理者の承認を受けてください。"]
[2,"危険物を使用するときは、小分けにして使用し、容器の蓋は常に閉め、火気に注意してください。"]
["〔避難施設の維持管理について〕"]
[1,"避難口、廊下、階段、避難通路には避難障害となる設備を設けたり、物品を置かないでください。"]
[2,"防火戸の付近には、常に閉鎖の障害となる物品を置かないでください。"]
["〔放火防止対策について〕"]
[1,"建物の外周部及び敷地内には、ダンボール等の可燃物を放置しないでください。"]
[2,"倉庫、更衣室などを使用しないときは、施錠しておきましょう。"]
[3,"ゴミ類の廃棄可燃物は、定められた時間に、指定場所に持っていきましょう。"]
["〔火災時の対応〕"]
[1,"通報連絡"]
[null,"１１９番通報します（火災か救急かの種別、所在、目標、火災の内容など）"]
["　","防災センター（防災センターがある場合）と防火管理者に連絡します。"]
[2,"消火活動"]
[null,"消火器等を使って、消火活動を行います。"]
[3,"避難誘導"]
[null,"避難口（出入口）を開放し、避難口までお客を誘導します。"]
["〔地震時の対応〕"]
[1,"身の安全を図ってください。"]
[null,"蛍光灯、ガラス製品、窓等の近くから離れてください。"]
[2,"火の始末を行ってください。"]
[null,"揺れがおさまったら、火気設備・器具の直近にいる者は、すぐに火を消してください。"]
["〔その他〕"]

{"sheet":"別紙２","index":11,"n_rows":46,"n_cols":6,"rows_kept":46,"cut":false,"hidden":false,"merged":[[7,3,7,6],[8,5,8,8],[9,5,9,8],[1,0,1,9],[46,1,46,9],[5,1,5,2],[6,1,6,2],[7,1,7,2],[8,1,8,4],[9,1,9,4],[5,3,5,6],[6,3,6,6]]}
["別紙２"]
["防火・防災の手引き（従業員用）"]
["〔消防計画について〕"]
[null,"消防計画を再確認してください。"]
[null,"消防計画の確認計画"]
[1,"通報連絡（情報）班",null,"（　　　　　　　　　　　　　　　　　　）"]
[2,"初期消火班",null,"（　　　　　　　　　　　　　　　　　　）"]
[3,"避難誘導班",null,"（　　　　　　　　　　　　　　　　　　）"]
[4,"日常の自主検査は誰が実施担当者ですか",null,null,null,"（　　　　　　　　　　　　　　　　　　）"]
[5,"定期の自主検査は誰が実施担当者ですか",null,null,null,"（　　　　　　　　　　　　　　　　　　）"]
["〔火気設備・器具について〕"]
[1,"火気設備・器具の周辺は、よく整理清掃して可燃物を接して置かないでください。"]
[2,"火気設備・器具は、常に監視できる状態で使用し、その場を離れるときは、必ず消してください。"]
[3,"火気設備・器具にある取扱上の注意事項を守り、故障又は破損したままで使用しないでください。"]
[4,"地震時には、火気設備・器具の使用を中止してください。"]
[5,"終業時には、火気設備・器具の点検を行い、安全を確認してください。"]
["〔喫煙について〕"]
[1,"喫煙は、指定された場所で、吸殻入れを用いて喫煙してください。"]
[2,"タバコの吸殻は必ず水の入ったバケツなどに捨て、可燃ゴミの中には絶対に入れないでください。"]
[3,"終業時には、吸殻の処理（水の入ったバケツに捨てる。）を確実に行ってください。"]
["〔危険物の取扱いについて〕"]
[1,"危険物（シンナー、ベンジンなど）を使用するときは、防火管理者の承認を受けてください。"]
[2,"危険物を使用するときは、小分けにして使用し、容器の蓋は常に閉め、火気に注意してください。"]
["〔避難施設の維持管理について〕"]
[1,"避難口、廊下、階段、避難通路には避難障害となる設備を設けたり、物品を置かないでください。"]
[2,"防火戸の付近には、常に閉鎖の障害となる物品を置かないでください。"]
["〔放火防止対策について〕"]
[1,"建物の外周部及び敷地内には、ダンボール等の可燃物を放置しないでください。"]
[2,"倉庫、更衣室などを使用しないときは、施錠しておきましょう。"]
[3,"ゴミ類の廃棄可燃物は、定められた時間に、指定場所に持っていきましょう。"]
[4,"店内外の不審者に対しては、注意を払ってください。"]
["〔火災時の対応〕"]
[1,"通報連絡"]
[null,"１１９番通報します（火災か救急かの種別、所在、目標、火災の内容など）"]
["　","防災センター（防災センターがある場合）に連絡します。"]
[null,"防火管理者に連絡し、指示を受けてください。"]
[2,"消火活動"]
[null,"消火器等を使って、消火活動を行います。"]
[3,"避難誘導"]
[null,"避難口（出入口）を開放し、避難口までお客を誘導します。"]
["〔地震時の対応〕"]
[1,"まず身の安全を図ってください。"]
[null,"蛍光灯、ガラス製品、窓等の近くから離れてください。"]
[2,"火の始末を行ってください。"]
[null,"揺れがおさまったら、火気設備・器具の直近にいる者は、すぐに火を消してください。"]
["〔その他〕"]

{"sheet":"別添え","index":12,"n_rows":50,"n_cols":30,"rows_kept":50,"cut":false,"hidden":false,"merged":[[1,0,1,28],[3,0,3,2],[3,11,3,16],[5,19,5,23],[5,7,5,10],[24,14,24,19],[28,22,28,28],[16,23,16,28],[49,24,49,28],[36,0,36,28],[27,8,27,12],[29,9,29,13],[30,9,30,13],[31,9,31,13],[32,9,32,13],[24,0,24,4],[16,8,16,12]]}
["別添え"]
["消防計画概要"]
[]
["予防対策",null,null,null,null,null,"防火管理者",null,null,null,null,{"$f":"入力シート!B5","v":0}]
[]
["●","点検・検査業務　",null,null,null,null,null,"４・５参照",null,null,null,null,null,null,"●","管理業務",null,null,null,"７．８．１０参照"]
[]
[null,"日常の火災予防",null,null,null,null,null,null,null,null,null,null,null,null,null,"・収容人員の管理"]
[null,"・火気管理",null,null,null,null,null,null,null,null,null,null,null,null,null,"・工事中の安全対策の樹立"]
[null,"・設備等の維持管理",null,null,null,null,null,null,null,null,null,null,null,null,null,"・火気の使用制限、臨時の火気使用の監督"]
[null,"・出火防止の自主検査",null,null,null,null,null,null,null,null,null,null,null,null,null,"・放火防止対策"]
[null,"・避難安全の自主検査",null,null,null,null,null,null,null,null,null,null,null,null,null,"・家具類等の転倒・落下・移動防止措置"]
[]
[null,"・建物等の定期の自主検査",null,null,null,null,null,null,null,null,null,null,null,null,null,"・消防機関へ報告、連絡"]
[null,"・消防用設備等の自主点検",null,null,null,null,null,null,null,null,null,null,null,null,null,"・防火管理維持台帳の整備"]
[]
["●","防火・防災教育",null,null,null,null,null,null,"６．９．１３参照",null,null,null,null,null,null,null,null,null,null,null,null,null,null,{"$f":"入力シート!B46","v":0}]
[null,"従業員が守るべき事項の周知",null,null,null,null,null,null,null,null,null,null,"火災時の対応の周知",null,null,null,null,null,null,null,null,null,"地震時の対応の周知"]
[null,"・避難施設の維持",null,null,null,null,null,null,null,null,null,null,"・１１９通報、防災センター連絡",null,null,null,null,null,null,null,null,null,"・身の安全の確保"]
[null,"・防火設備の維持",null,null,null,null,null,null,null,null,null,null,"・消火器等による初期消火",null,null,null,null,null,null,null,null,null,"・出火防止"]
[null,"・火気管理ルール（喫煙、危険物品、",null,null,null,null,null,null,null,null,null,null,"・避難要領、避難経路の周知",null,null,null,null,null,null,null,null,null,"・出火時の初期消火"]
[null,"　火気使用等）",null,null,null,null,null,null,null,null,null,null,null,null,null,null,null,null,null,null,null,null,"・一斉帰宅抑制"]
[]
[]
["自衛消防対策",null,null,null,null,null,null,null,null,null,"自衛消防隊長",null,null,null,{"$f":"入力シート!B53","v":0}]
[]
["●自衛消防隊の編成",null,null,null,null,null,null,null,null,"１１参照",null,null,null,null,"●","自衛消防訓練",null,null,null,null,null,"１２参照"]
["自衛消防隊長代行者",null,null,null,null,null,null,null,{"$f":"入力シート!B54","v":0},null,null,null,null,"　","通報訓練",null,null,null,null,null,null,null,"総合訓練"]
["本部隊",null,null,null,null,null,null,null,null,null,null,null,null,"　　",null,"消防機関への通報",null,null,null,null,null,null,{"$f":"入力シート!B76","v":0}]
["　","通報連絡班",null,null,null,"〔通称（通）〕",null,null,null,{"$f":"入力シート!B56","v":0}]
[null,"初期消火班",null,null,null,"〔通称（初）〕",null,null,null,{"$f":"入力シート!B61","v":0},null,null,null,null,"消火訓練",null,null,null,null,null,null,null,"避難訓練"]
[null,"避難誘導班",null,null,null,"〔通称（避）〕",null,null,null,{"$f":"入力シート!B66","v":0},null,null,null,null,null,"消火器、屋内消火栓",null,null,null,null,null,null,null,"避難誘導"]
[null,"応急救護班",null,null,null,"〔通称（応）〕",null,null,null,null,null,null,null,null,null,"等の取扱い",null,null,null,null,null,null,null,"誘導員の配置",null,null,null,null,null,"←応急救護班は、編成した場合に直接入力してください"]
[null,null,null,null,null,null,null,null,null,null,null,null,null,null,null,null,null,null,null,null,null,null,null,"避難路の確保"]
[]
[]
["災害発生時の対応（火災、地震等が発生した時の対応）"]
["●","火災時",null,null,"１１参照"]
["・（通）",null,null,"１１９番通報、関係者への連絡、災害状況の情報収集"]
["・（初）",null,null,"消火器・屋内消火栓等による消火活動"]
["・（避）",null,null,"出火階・直上階の優先避難、非常口の開放、エレベーターによる避難は行わせない。"]
["・（応）",null,null,"必要により救護所の設置、逃げ遅れ者の救出、負傷者の応急手当の実施"]
["●","震災時",null,null,"１３参照",null,null,null,null,null,null,null,"●","大規模テロ等発生時",null,null,null,null,null,null,"１４参照",null,null,null,"●","大雨又は"]
["・身の安全の確保",null,null,null,null,null,null,null,null,null,null,null,"・身体防護措置の実施",null,null,null,null,null,null,null,null,null,null,null,null,"強風時"]
["・（通）被害状況の把握",null,null,null,null,null,null,null,null,null,null,null,"・（通）１１９番通報（事業所で発生）",null,null,null,null,null,null,null,null,null,null,null,null,null,"１５参照"]
["・（通）火災発生時の１１９番通報",null,null,null,null,null,null,null,null,null,null,null,"・（避）屋外への退避指示、避難誘導",null,null,null,null,null,null,null,null,null,null,null,"・（初）浸水防止"]
["・（応）負傷者等の初期救助、初期救護",null,null,null,null,null,null,null,null,null,null,null,"・（通）行政機関の指示を在館者に伝達",null,null,null,null,null,null,null,null,null,null,null,null,"措置"]
["・（通）従業員家族の安否確認",null,null,null,null,null,null,null,null,null,null,null,"●","受傷事故発生時",null,null,null,null,null,"１６参照",null,null,null,null,"・（避）在館者の"]
["・（避）在館者の避難誘導（倒壊危険時）",null,null,null,null,null,null,null,null,null,null,null,"・（通）１１９番通報",null,null,null,null,null,null,null,null,null,null,null,null,"避難誘導"]
["・（通）一斉帰宅抑制（交通機関停止時）",null,null,null,null,null,null,null,null,null,null,null,"・（応）応急手当の実施（AED等）",null,null,null,null,null,null,null,null,null,null,null,"（避難を要する時）"]